Workbook

Sheet Identification
A1: Formulaire de planification et de suivi 2023-2028
A2: Clef unique | B2: Nom du ministère ou de l'organisme (MO)
A3: CLEF_uni | B3: NOM | C3: ETC_23-24 | D3: ETC_24-25 | E3: ETC_25-26 | F3: ETC_26-27 | G3: ETC_26-28 | H3: ETC_27-28
B4: Nombre d'employés équivalent à temps complet (ETC) | C4: À remplir en 2024 | D4: À remplir en 2025 | E4: À remplir en 2026 | F4: À remplir en 2027 | G4: À remplir en 2028 | H4: À remplir en 2029
B5: Date d'adoption du PADD : | C5: Inscrire la date
B6: Officier de développement durable : | C6: Inscrire le nom de l'ODD

Sheet Redd_Cptes_PADD
A1: Clef unique | B1: Date d'adoption de l'engagement | C1: Numéro de l'engagement | D1: Planification existante | E1: Sous-objectif - SGDD | F1: Objectif de développement durable 2030 visé | G1: Numéro de l'action | H1: Libellé de l'action | I1: Description de l'action | J1: Numéro de l'indicateur | K1: Libellé de l'indicateur | L1: Référence (donnée/année) | M1: Cible au 31 mars 2024 | N1: Cible au 31 mars 2025 | O1: Cible au 31 mars 2026 | P1: Cible au 31 mars 2027 | Q1: Cible au 31 mars 2028 | R1: Cible au 31 mars 2029 | S1: Résultats et synthèse des activités 2023-2024 (Max 20 mots/ 125 caractères) | T1: Détail des activités réalisées au cours de l'année 2023-2024 (Max 65 mots/400 caractères) | U1: État de l'engagement 2023-2024 | V1: Pourcentage d'atteinte de la cible 2023-2024 | W1: Soutien financier / investissement associé à l'engagement 2023-2024 | X1: Résultats et synthèse des activités 2024-2025 (Max 20 mots/ 125 caractères) | Y1: Détail des activités réalisées au cours de l'année 2024-2025 (Max 65 mots/400 caractères) | Z1: État de l'engagement 2024-2025 | AA1: Pourcentage d'atteinte de la cible 2024-2025 | AB1: Soutien financier / investissement associé à l'engagement 2024-2025 | AC1: Résultats et synthèse des activités 2025-2026 (Max 20 mots/ 125 caractères) | AD1: Détail des activités réalisées au cours de l'année 2025-2026 (Max 65 mots/400 caractères) | AE1: État de l'engagement 2025-2026 | AF1: Pourcentage d'atteinte de la cible 2025-2026 | AG1: Soutien financier / investissement associé à l'engagement 2025-2026 | AH1: Résultats et synthèse des activités 2026-2027 (Max 20 mots/ 125 caractères) | AI1: Détail des activités réalisées au cours de l'année 2026-2027 (Max 65 mots/400 caractères) | AJ1: État de l'engagement 2026-2027 | AK1: Pourcentage d'atteinte de la cible 2026-2027 | AL1: Soutien financier / investissement associé à l'engagement 2026-2027 | AM1: Résultats et synthèse des activités 2027-2028 (Max 20 mots/ 125 caractères) | AN1: Détail des activités réalisées au cours de l'année 2027-2028 (Max 65 mots/400 caractères) | AO1: État de l'engagement 2027-2028 | AP1: Pourcentage d'atteinte de la cible 2027-2028 | AQ1: Soutien financier / investissement associé à l'engagement 2027-2028 | AR1: Résultats et synthèse des activités 2028-2029 (Max 20 mots/ 125 caractères) | AS1: Détail des activités réalisées au cours de l'année 2028-2029 (Max 65 mots/400 caractères) | AT1: État de l'engagement 2028-2029 | AU1: Pourcentage d'atteinte de la cible 2028-2029 | AV1: Soutien financier / investissement associé à l'engagement 2028-2029 | AW1: Plan de travail / réalisation | AX1: Direction/secteur responsable de l'engagement | AY1: Budget associé à la réalisation de l'engagement
A2: CLEF_uni | B2: DAT_ENG | C2: No_ENG | D2: PL_EXT | E2: No_S-OBJ | F2: ODD | G2: No_ACT2 | H2: LIB_ACT | I2: DES_ACT | J2: No_IND | K2: Lib_IND | L2: Ref | M2: CIB_24 | N2: CIB_25 | O2: CIB_26 | P2: CIB_27 | Q2: CIB_28 | R2: CIB_29 | S2: RESUL_23_24 | T2: DETAIL_23_24 | U2: ATTEINTE_23-24 | V2: Pc_ATT_23-24 | W2: SF_23-24 | X2: RESUL_24_25 | Y2: DETAIL_24_25 | Z2: ATTEINTE_24-25 | AA2: Pc_ATT_24-25 | AB2: SF_24-25 | AC2: RESUL_25_26 | AD2: DETAIL_25_26 | AE2: ATTEINTE_25-26 | AF2: Pc_ATT_25-26 | AG2: SF_25-26 | AH2: RESUL_26_27 | AI2: DETAIL_26_27 | AJ2: ATTEINTE_26-27 | AK2: Pc_ATT_26-27 | AL2: SF_26-27 | AM2: RESUL_27_28 | AN2: DETAIL_27_28 | AO2: ATTEINTE_27-28 | AP2: Pc_ATT_27-28 | AQ2: SF_27-28 | AR2: RESUL_28_29 | AS2: DETAIL_28_29 | AT2: ATTEINTE_28-29 | AU2: Pc_ATT_28-29 | AV2: SF_28-29 | AW2: PDT | AX2: Resp_ACT | AY2: Budg_ACT
A3: =Table1[CLEF_uni] -> 0 | B3: 02-23-2024 | C3: 2 | E3: 1.2.1 | G3: 1 | H3: Assurer le développement des compétences vertes | I3: Identifier les impacts de la transition socio-écologique, notamment la transition climatique, sur l’emploi et les compétences des travailleurs de leurs secteurs d’activité, et répondre à cet enjeu par leurs politiques publiques et leurs programmes | J3: 1.1 | K3: Nombre d'actions réalisées par LOJIQ autour du développement durable | L3: N/A | M3: 10 | N3: 14 | O3: 16 | P3: 18 | Q3: 20 | S3: Inscrire le résultat | T3: Inscrire les détails | U3: NON ATTEINT- Débuté | X3: Inscrire le résultat | Y3: Inscrire les détails | Z3: ATTEINT | AC3: Inscrire le résultat | AD3: Inscrire les détails | AE3: ATTEINT | AH3: Inscrire le résultat | AI3: Inscrire les détails | AJ3: ATTEINT | AM3: Inscrire le résultat | AN3: Inscrire les détails | AO3: ATTEINT | AR3: Inscrire le résultat | AS3: Inscrire les détails | AT3: ATTEINT | AW3: 2023-2024 : 13 actions 2024-2025 : 2025-2026 : 2026-2027 : 2027-2028 :
A4: =Table1[CLEF_uni] -> 0 | B4: 02-23-2024 | C4: 3 | E4: 3.1.2 | G4: 2 | H4: Soutenir les groupes communautaires et les entreprises en économie sociale | I4: Établir les retombées de la transition socio-écologique sur leur clientèle et sur les services qui lui sont offerts afin de les adapter. Il est également attendu qu’ils appuient les organismes qui contribuent à l’inclusion sociale et économique, car ceux-ci jouent un rôle essentiel dans cette transition. | J4: 2.1 | K4: Nombre d’actions visant à soutenir les entreprises en économie sociale et les groupes communautaires | L4: N/A | M4: 6 | N4: 10 | O4: 12 | P4: 15 | Q4: 18 | S4: Inscrire le résultat | T4: Inscrire les détails | U4: NON ATTEINT- Débuté | X4: Inscrire le résultat | Y4: Inscrire les détails | Z4: ATTEINT | AC4: Inscrire le résultat | AD4: Inscrire les détails | AE4: NON ATTEINT- Débuté | AF4: 0.65 | AH4: Inscrire le résultat | AI4: Inscrire les détails | AJ4: ATTEINT | AM4: Inscrire le résultat | AN4: Inscrire les détails | AO4: ATTEINT | AR4: Inscrire le résultat | AS4: Inscrire les détails | AT4: NON ATTEINT- Débuté | AU4: 0.77 | AW4: 2023-2024 : 8 actions 2024-2025 : 2025-2026 : 2026-2027 : 2027-2028 :
A5: =Table1[CLEF_uni] -> 0 | B5: 02-23-2024 | C5: 4 | E5: 3.2.1 | G5: 1 | H5: Favoriser la cohésion sociale par le dialogue culturel | I5: Inclure les questions relatives à l’égalité entre les sexes, à l’équité et à la diversité dans leurs lois, politiques publiques et programmes et qu’ils mobilisent leurs partenaires privés et publics sur cet enjeu. Il est aussi attendu qu’ils mettent en valeur l’apport socioculturel des jeunes, des femmes, des Autochtones et des personnes issues de la diversité à société québécoise. | J5: 1.1 | K5: Proportion des projets de LOJIQ | L5: 1 | M5: 1 | N5: 1 | O5: 1 | P5: 1 | Q5: 1 | S5: Inscrire le résultat | T5: Inscrire les détails | U5: NON ATTEINT- Débuté | X5: Inscrire le résultat | Y5: Inscrire les détails | Z5: ATTEINT | AC5: Inscrire le résultat | AD5: Inscrire les détails | AE5: NON ATTEINT- Débuté | AF5: 0.8 | AH5: Inscrire le résultat | AI5: Inscrire les détails | AJ5: NON ATTEINT- Débuté | AK5: 0.98 | AM5: Inscrire le résultat | AN5: Inscrire les détails | AO5: ATTEINT | AR5: Inscrire le résultat | AS5: Inscrire les détails | AT5: NON ATTEINT- Débuté | AU5: 0.88 | AW5: 2023-2024 : 100% 2024-2025 : 2025-2026 : 2026-2027 : 2027-2028 :
A6: =Table1[CLEF_uni] -> 0 | B6: 02-23-2024 | C6: 5 | E6: 3.2.2 | G6: 2 | H6: Appuyer l’entrepreneuriat des femmes, des autochtones et des personnes issues de la diversité | I6: Encourager l’entrepreneuriat des femmes, des Autochtones et des personnes issues de la diversité en portant une attention particulière aux jeunes. Ils sont aussi appelés à soutenir l’intégration au marché du travail de ces personnes et le développement de milieux de travail sécuritaires et inclusifs pour tous. | J6: 2.1 | K6: Nombre de projets initiés pour soutenir l’entrepreneuriat féminin, des autochtones et des personnes issues de la diversité | L6: N/A | M6: 2 | N6: 3 | O6: 3 | P6: 4 | Q6: 4 | S6: Inscrire le résultat | T6: Inscrire les détails | U6: NON ATTEINT- Débuté | X6: Inscrire le résultat | Y6: Inscrire les détails | Z6: ATTEINT | AC6: Inscrire le résultat | AD6: Inscrire les détails | AE6: NON ATTEINT- Débuté | AF6: 0.9 | AH6: Inscrire le résultat | AI6: Inscrire les détails | AJ6: NON ATTEINT- Débuté | AK6: 0.77 | AM6: Inscrire le résultat | AN6: Inscrire les détails | AO6: ATTEINT | AR6: Inscrire le résultat | AS6: Inscrire les détails | AT6: NON ATTEINT- Débuté | AU6: 0.99 | AW6: 2023-2024 : 3 actions 2024-2025 : 2025-2026 : 2026-2027 : 2027-2028 :
A7: =Table1[CLEF_uni] -> 0 | B7: 02-23-2024 | C7: 8 | E7: 5.1.1 | G7: 1 | H7: Évaluer la durabilité des interventions gouvernementales | I7: Accroissent le taux de leurs interventions structurantes ayant fait l’objet d’une évaluation de la durabilité et comprenant la lutte contre les changements climatiques. | J7: 1.1 | K7: Intégration des objectifs de développement durable dans la révision des programmes de LOJIQ | L7: N/A | M7: 0.75 | N7: 0.85 | O7: 0.9 | P7: 0.95 | Q7: 1 | S7: Inscrire le résultat | T7: Inscrire les détails | U7: NON ATTEINT- Débuté | X7: Inscrire le résultat | Y7: Inscrire les détails | Z7: ATTEINT | AC7: Inscrire le résultat | AD7: Inscrire les détails | AH7: Inscrire le résultat | AI7: Inscrire les détails | AM7: Inscrire le résultat | AN7: Inscrire les détails | AO7: NON ATTEINT- Débuté | AP7: 0.98 | AR7: Inscrire le résultat | AS7: Inscrire les détails | AW7: 2023-2024 : 2024-2025 : 2025-2026 : 2026-2027 : 2027-2028 :

Sheet EVA_DUR
A1: Indicateur | B1: Types d'interventions | C1: Résultat 2023-2024 | F1: Résultat 2024-2025 | I1: Résultat 2025-2026 | L1: Résultat 2026-2027 | O1: Résultat 2027-2028
C2: Nombre d'interventions évalués | D2: Nombre total d'interventions | E2: Proportion | F2: Nombre d'interventions évalués | G2: Nombre total d'interventions | H2: Proportion | I2: Nombre d'interventions évalués | J2: Nombre total d'interventions | K2: Proportion | L2: Nombre d'interventions évalués | M2: Nombre total d'interventions | N2: Proportion | O2: Nombre d'interventions évalués | P2: Nombre total d'interventions | Q2: Proportion
A3: Proportion des interventions organisationnelles ayant fait l’objet d’une évaluation de la durabilité | B3: Plan stratégique | C3: 0 | D3: 0 | E3: =IF(D3,C3/D3,"S.O") -> S.O | H3: =IF(G3,F3/G3,"S.O") -> S.O | K3: =IF(J3,I3/J3,"S.O") -> S.O | N3: =IF(M3,L3/M3,"S.O") -> S.O | Q3: =IF(P3,O3/P3,"S.O") -> S.O
B4: intervention menant à un mémoire au Conseil des ministres | C4: 2 | D4: 7 | E4: =IF(D4,C4/D4,"S.O") -> 0.2857142857 | H4: =IF(G4,F4/G4,"S.O") -> S.O | K4: =IF(J4,I4/J4,"S.O") -> S.O | N4: =IF(M4,L4/M4,"S.O") -> S.O | Q4: =IF(P4,O4/P4,"S.O") -> S.O
B5: programmes de soutien financier normés | C5: 2 | D5: 2 | E5: 1 | H5: S.O | K5: S.O | N5: S.O | Q5: S.O
B6: Autre intervention jugée structurante au sein de l’organisation* | C6: 0 | D6: 0 | E6: S.O | H6: S.O | K6: S.O | N6: S.O | Q6: S.O
B7: Total | C7: =SUM(C3:C6) -> 4 | D7: =SUM(D3:D6) -> 9 | E7: =IF(D7,C7/D7,"S.O") -> 0.4444444444 | F7: =SUM(F3:F6) -> 0 | G7: =SUM(G3:G6) -> 0 | H7: S.O | I7: =SUM(I3:I6) -> 0 | J7: =SUM(J3:J6) -> 0 | K7: S.O | L7: =SUM(L3:L6) -> 0 | M7: =SUM(M3:M6) -> 0 | N7: S.O | O7: =SUM(O3:O6) -> 0 | P7: =SUM(P3:P6) -> 0 | Q7: S.O
A9: *Autre intervention jugée structurante au sein de l’organisation | B9: Préciser les types d'interventions visés

Sheet POL_PRJ
A1: Clef unique | B1: Lois, politiques, stratégies et plans d'action adoptés au cours de l'année | C1: Date d'adoption | D1: Date de fin | E1: Thème | F1: LIEN SGDD
A2: CLEF_uni | B2: POL_ADOP | C2: DAT_ADOP | D2: DAT_FIN | E2: THEME | F2: POL_SGDD
A3: =Table1[CLEF_uni] -> 0 | B3: Listez vos lois, politiques, stratégies et plan d'action ici.
A4: =Table1[CLEF_uni] -> 0 | B4: Listez vos lois, politiques, stratégies et plan d'action ici.
A5: =Table1[CLEF_uni] -> 0 | B5: Listez vos lois, politiques, stratégies et plan d'action ici.
A6: =Table1[CLEF_uni] -> 0 | B6: Listez vos lois, politiques, stratégies et plan d'action ici.
A7: =Table1[CLEF_uni] -> 0 | B7: Listez vos lois, politiques, stratégies et plan d'action ici.
A9: Clef unique | B9: Projet phare/fait saillant en développement durable (Max 100 mots/625 caractères)
A10: CLEF_uni | B10: PROJ_PHARE
A11: =Table1[CLEF_uni] -> 0 | B11: Inscrire un projet phare ou un fait saillant de votre organisation en développement durable mise en œuvre ou élaboré au cours de l'année.
A12: =Table1[CLEF_uni] -> 0 | B12: Inscrire un projet phare ou un fait saillant de votre organisation en développement durable mise en œuvre ou élaboré au cours de l'année.

Sheet RECOM_CDD
A1: Clef unique | B1: Recommandations du Commissaire au développement durable | C1: Mesures prises suite aux recommandations | D1: Résultats (Atteint/non-atteint)
A2: CLEF_uni | B2: RECOM_CDD | C2: MESURE_CDD | D2: RESUL_CDD
A3: =Table1[CLEF_uni] -> 0 | B3: Inscrire les recommandations ici. | C3: Inscrire les mesures prises ici. | D3: Inscrire les résultats ici.
A4: =Table1[CLEF_uni] -> 0 | B4: Inscrire les recommandations ici. | C4: Inscrire les mesures prises ici. | D4: Inscrire les résultats ici.
A5: =Table1[CLEF_uni] -> 0 | B5: Inscrire les recommandations ici. | C5: Inscrire les mesures prises ici. | D5: Inscrire les résultats ici.
A6: =Table1[CLEF_uni] -> 0 | B6: Inscrire les recommandations ici. | C6: Inscrire les mesures prises ici. | D6: Inscrire les résultats ici.
A7: =Table1[CLEF_uni] -> 0 | B7: Inscrire les recommandations ici. | C7: Inscrire les mesures prises ici. | D7: Inscrire les résultats ici.
A8: =Table1[CLEF_uni] -> 0 | B8: Inscrire les recommandations ici. | C8: Inscrire les mesures prises ici. | D8: Inscrire les résultats ici.
A9: =Table1[CLEF_uni] -> 0 | B9: Inscrire les recommandations ici. | C9: Inscrire les mesures prises ici. | D9: Inscrire les résultats ici.
A10: =Table1[CLEF_uni] -> 0 | B10: Inscrire les recommandations ici. | C10: Inscrire les mesures prises ici. | D10: Inscrire les résultats ici.
A11: =Table1[CLEF_uni] -> 0 | B11: Inscrire les recommandations ici. | C11: Inscrire les mesures prises ici. | D11: Inscrire les résultats ici.
A12: =Table1[CLEF_uni] -> 0 | B12: Inscrire les recommandations ici. | C12: Inscrire les mesures prises ici. | D12: Inscrire les résultats ici.
A13: =Table1[CLEF_uni] -> 0 | B13: Inscrire les recommandations ici. | C13: Inscrire les mesures prises ici. | D13: Inscrire les résultats ici.
A14: =Table1[CLEF_uni] -> 0 | B14: Inscrire les recommandations ici. | C14: Inscrire les mesures prises ici. | D14: Inscrire les résultats ici.
A15: =Table1[CLEF_uni] -> 0 | B15: Inscrire les recommandations ici. | C15: Inscrire les mesures prises ici. | D15: Inscrire les résultats ici.
A16: =Table1[CLEF_uni] -> 0 | B16: Inscrire les recommandations ici. | C16: Inscrire les mesures prises ici. | D16: Inscrire les résultats ici.
A17: =Table1[CLEF_uni] -> 0 | B17: Inscrire les recommandations ici. | C17: Inscrire les mesures prises ici. | D17: Inscrire les résultats ici.
A18: =Table1[CLEF_uni] -> 0 | B18: Inscrire les recommandations ici. | C18: Inscrire les mesures prises ici. | D18: Inscrire les résultats ici.

Sheet Analyse_QT (hidden)
A1: ANALYSE DE LA QUALITÉ DU PLAN D'ACTION DE DÉVELOPPEMENT DURABLE
A2: Plan d'action 2023-2028 de l'organisation | N2: Analyse général engagement | Q2: Engagement SMART
A3: Clef unique | B3: № action | C3: Action | D3: Description action | E3: № indicateur | F3: Indicateur | G3: Référence | H3: Cible 2023-2024 | I3: Cible 2024-2025 | J3: Cible 2025-2026 | K3: Cible 2026-2027 | L3: Cible 2027-2028 | M3: Cible 2028-2029 | N3: Type indicateur | O3: Cible annuelle | P3: Engagements ambitieux | Q3: Engagement spécifique | R3: Engagement mesurable | S3: Engagement atteignable | T3: Engagement pertinent (SGDD) | U3: Temporel | V3: SMART | W3: Commentaires
A4: CLEF_uni | B4: No_ACT | C4: LIB_ACT | D4: DES_ACT | E4: No_IND | F4: Lib_IND | G4: Ref | H4: CIB_24 | I4: CIB_25 | J4: CIB_26 | K4: CIB_27 | L4: CIB_28 | M4: CIB_29 | N4: TYP_IND | O4: ANN | P4: AMB | Q4: SPC | R4: ME | S4: ATT | T4: PER | U4: TEMP | V4: TOTAL | W4: COM
A5: =Table1[CLEF_uni] -> 0 | B5: =Redd_Cptes_PADD!#REF! ->  | C5: =Redd_Cptes_PADD!#REF! ->  | D5: =Redd_Cptes_PADD!#REF! ->  | E5: =Redd_Cptes_PADD!#REF! ->  | F5: =Redd_Cptes_PADD!#REF! ->  | G5: =Redd_Cptes_PADD!#REF! ->  | H5: =Redd_Cptes_PADD!#REF! ->  | I5: =Redd_Cptes_PADD!#REF! ->  | J5: =Redd_Cptes_PADD!#REF! ->  | K5: =Redd_Cptes_PADD!#REF! ->  | L5: =Redd_Cptes_PADD!#REF! ->  | M5: =Redd_Cptes_PADD!#REF! ->  | N5: Activité | O5: OUI | P5: OUI | Q5: OUI | R5: OUI | S5: OUI | T5: OUI | U5: OUI | V5: =IF(COUNTIFS(Q5,"OUI",R5,"OUI",S5,"OUI",T5,"OUI",U5,"OUI"),"OUI","NON") -> OUI
A6: =Table1[CLEF_uni] -> 0 | B6: =Redd_Cptes_PADD!G3 -> 1 | C6: =Redd_Cptes_PADD!H3 -> Assurer le développement des compétences vertes | D6: =Redd_Cptes_PADD!I3 -> Identifier les impacts de la transition socio-écologique, notamment la transition climatique, sur l’emploi et les compétences des travailleurs de leurs secteurs d’activité, et répondre à cet enjeu par leurs politiques publiques et leurs programmes | E6: =Redd_Cptes_PADD!J3 -> 1.1 | F6: =Redd_Cptes_PADD!K3 -> Nombre d'actions réalisées par LOJIQ autour du développement durable | G6: =Redd_Cptes_PADD!L3 -> N/A | H6: =Redd_Cptes_PADD!M3 -> 10 | I6: =Redd_Cptes_PADD!N3 -> 14 | J6: =Redd_Cptes_PADD!O3 -> 16 | K6: =Redd_Cptes_PADD!P3 -> 18 | L6: =Redd_Cptes_PADD!Q3 -> 20 | M6: =Redd_Cptes_PADD!R3 -> 0 | N6: Extrant | Q6: OUI | R6: OUI | S6: OUI | T6: OUI | U6: OUI | V6: =IF(COUNTIFS(Q6,"OUI",R6,"OUI",S6,"OUI",T6,"OUI",U6,"OUI"),"OUI","NON") -> OUI
A7: =Table1[CLEF_uni] -> 0 | B7: =Redd_Cptes_PADD!G4 -> 2 | C7: =Redd_Cptes_PADD!H4 -> Soutenir les groupes communautaires et les entreprises en économie sociale | D7: =Redd_Cptes_PADD!I4 -> Établir les retombées de la transition socio-écologique sur leur clientèle et sur les services qui lui sont offerts afin de les adapter. Il est également attendu qu’ils appuient les organismes qui contribuent à l’inclusion sociale et économique, car ceux-ci jouent un rôle essentiel dans cette transition. | E7: =Redd_Cptes_PADD!J4 -> 2.1 | F7: =Redd_Cptes_PADD!K4 -> Nombre d’actions visant à soutenir les entreprises en économie sociale et les groupes communautaires | G7: =Redd_Cptes_PADD!L4 -> N/A | H7: =Redd_Cptes_PADD!M4 -> 6 | I7: =Redd_Cptes_PADD!N4 -> 10 | J7: =Redd_Cptes_PADD!O4 -> 12 | K7: =Redd_Cptes_PADD!P4 -> 15 | L7: =Redd_Cptes_PADD!Q4 -> 18 | M7: =Redd_Cptes_PADD!R4 -> 0 | N7: Extrant | V7: NON
A8: =Table1[CLEF_uni] -> 0 | B8: =Redd_Cptes_PADD!G5 -> 1 | C8: =Redd_Cptes_PADD!H5 -> Favoriser la cohésion sociale par le dialogue culturel | D8: =Redd_Cptes_PADD!I5 -> Inclure les questions relatives à l’égalité entre les sexes, à l’équité et à la diversité dans leurs lois, politiques publiques et programmes et qu’ils mobilisent leurs partenaires privés et publics sur cet enjeu. Il est aussi attendu qu’ils mettent en valeur l’apport socioculturel des jeunes, des femmes, des Autochtones et des personnes issues de la diversité à société québécoise. | E8: =Redd_Cptes_PADD!J5 -> 1.1 | F8: =Redd_Cptes_PADD!K5 -> Proportion des projets de LOJIQ | G8: =Redd_Cptes_PADD!L5 -> 1 | H8: =Redd_Cptes_PADD!M5 -> 1 | I8: =Redd_Cptes_PADD!N5 -> 1 | J8: =Redd_Cptes_PADD!O5 -> 1 | K8: =Redd_Cptes_PADD!P5 -> 1 | L8: =Redd_Cptes_PADD!Q5 -> 1 | M8: =Redd_Cptes_PADD!R5 -> 0 | N8: Extrant | V8: NON
A9: =Table1[CLEF_uni] -> 0 | B9: =Redd_Cptes_PADD!G6 -> 2 | C9: =Redd_Cptes_PADD!H6 -> Appuyer l’entrepreneuriat des femmes, des autochtones et des personnes issues de la diversité | D9: =Redd_Cptes_PADD!I6 -> Encourager l’entrepreneuriat des femmes, des Autochtones et des personnes issues de la diversité en portant une attention particulière aux jeunes. Ils sont aussi appelés à soutenir l’intégration au marché du travail de ces personnes et le développement de milieux de travail sécuritaires et inclusifs pour tous. | E9: =Redd_Cptes_PADD!J6 -> 2.1 | F9: =Redd_Cptes_PADD!K6 -> Nombre de projets initiés pour soutenir l’entrepreneuriat féminin, des autochtones et des personnes issues de la diversité | G9: =Redd_Cptes_PADD!L6 -> N/A | H9: =Redd_Cptes_PADD!M6 -> 2 | I9: =Redd_Cptes_PADD!N6 -> 3 | J9: =Redd_Cptes_PADD!O6 -> 3 | K9: =Redd_Cptes_PADD!P6 -> 4 | L9: =Redd_Cptes_PADD!Q6 -> 4 | M9: =Redd_Cptes_PADD!R6 -> 0 | N9: Extrant | V9: NON
A10: =Table1[CLEF_uni] -> 0 | B10: =Redd_Cptes_PADD!#REF! ->  | C10: =Redd_Cptes_PADD!#REF! ->  | D10: =Redd_Cptes_PADD!#REF! ->  | E10: =Redd_Cptes_PADD!#REF! ->  | F10: =Redd_Cptes_PADD!#REF! ->  | G10: =Redd_Cptes_PADD!#REF! ->  | H10: =Redd_Cptes_PADD!#REF! ->  | I10: =Redd_Cptes_PADD!#REF! ->  | J10: =Redd_Cptes_PADD!#REF! ->  | K10: =Redd_Cptes_PADD!#REF! ->  | L10: =Redd_Cptes_PADD!#REF! ->  | M10: =Redd_Cptes_PADD!#REF! ->  | N10: Extrant | V10: NON
A11: =Table1[CLEF_uni] -> 0 | B11: =Redd_Cptes_PADD!#REF! ->  | C11: =Redd_Cptes_PADD!#REF! ->  | D11: =Redd_Cptes_PADD!#REF! ->  | E11: =Redd_Cptes_PADD!#REF! ->  | F11: =Redd_Cptes_PADD!#REF! ->  | G11: =Redd_Cptes_PADD!#REF! ->  | H11: =Redd_Cptes_PADD!#REF! ->  | I11: =Redd_Cptes_PADD!#REF! ->  | J11: =Redd_Cptes_PADD!#REF! ->  | K11: =Redd_Cptes_PADD!#REF! ->  | L11: =Redd_Cptes_PADD!#REF! ->  | M11: =Redd_Cptes_PADD!#REF! ->  | N11: Extrant | V11: NON
A12: =Table1[CLEF_uni] -> 0 | B12: =Redd_Cptes_PADD!G7 -> 1 | C12: =Redd_Cptes_PADD!H7 -> Évaluer la durabilité des interventions gouvernementales | D12: =Redd_Cptes_PADD!I7 -> Accroissent le taux de leurs interventions structurantes ayant fait l’objet d’une évaluation de la durabilité et comprenant la lutte contre les changements climatiques. | E12: =Redd_Cptes_PADD!J7 -> 1.1 | F12: =Redd_Cptes_PADD!#REF! ->  | G12: =Redd_Cptes_PADD!L7 -> N/A | H12: =Redd_Cptes_PADD!M7 -> 0.75 | I12: =Redd_Cptes_PADD!N7 -> 0.85 | J12: =Redd_Cptes_PADD!O7 -> 0.9 | K12: =Redd_Cptes_PADD!P7 -> 0.95 | L12: =Redd_Cptes_PADD!Q7 -> 1 | M12: =Redd_Cptes_PADD!R7 -> 0 | N12: Extrant | V12: NON
A13: =Table1[CLEF_uni] -> 0 | B13: =Redd_Cptes_PADD!#REF! ->  | C13: =Redd_Cptes_PADD!#REF! ->  | D13: =Redd_Cptes_PADD!#REF! ->  | E13: =Redd_Cptes_PADD!#REF! ->  | F13: =Redd_Cptes_PADD!#REF! ->  | G13: =Redd_Cptes_PADD!#REF! ->  | H13: =Redd_Cptes_PADD!#REF! ->  | I13: =Redd_Cptes_PADD!#REF! ->  | J13: =Redd_Cptes_PADD!#REF! ->  | K13: =Redd_Cptes_PADD!#REF! ->  | L13: =Redd_Cptes_PADD!#REF! ->  | M13: =Redd_Cptes_PADD!#REF! ->  | N13: Extrant | V13: NON
A14: =Table1[CLEF_uni] -> 0 | B14: =Redd_Cptes_PADD!#REF! ->  | C14: =Redd_Cptes_PADD!#REF! ->  | D14: =Redd_Cptes_PADD!#REF! ->  | E14: =Redd_Cptes_PADD!#REF! ->  | F14: =Redd_Cptes_PADD!#REF! ->  | G14: =Redd_Cptes_PADD!#REF! ->  | H14: =Redd_Cptes_PADD!#REF! ->  | I14: =Redd_Cptes_PADD!#REF! ->  | J14: =Redd_Cptes_PADD!#REF! ->  | K14: =Redd_Cptes_PADD!#REF! ->  | L14: =Redd_Cptes_PADD!#REF! ->  | M14: =Redd_Cptes_PADD!#REF! ->  | N14: Extrant | V14: NON
A15: =Table1[CLEF_uni] -> 0 | B15: =Redd_Cptes_PADD!#REF! ->  | C15: =Redd_Cptes_PADD!#REF! ->  | D15: =Redd_Cptes_PADD!#REF! ->  | E15: =Redd_Cptes_PADD!#REF! ->  | F15: =Redd_Cptes_PADD!#REF! ->  | G15: =Redd_Cptes_PADD!#REF! ->  | H15: =Redd_Cptes_PADD!#REF! ->  | I15: =Redd_Cptes_PADD!#REF! ->  | J15: =Redd_Cptes_PADD!#REF! ->  | K15: =Redd_Cptes_PADD!#REF! ->  | L15: =Redd_Cptes_PADD!#REF! ->  | M15: =Redd_Cptes_PADD!#REF! ->  | N15: Extrant | V15: NON
A16: =Table1[CLEF_uni] -> 0 | B16: =Redd_Cptes_PADD!#REF! ->  | C16: =Redd_Cptes_PADD!#REF! ->  | D16: =Redd_Cptes_PADD!#REF! ->  | E16: =Redd_Cptes_PADD!#REF! ->  | F16: =Redd_Cptes_PADD!#REF! ->  | G16: =Redd_Cptes_PADD!#REF! ->  | H16: =Redd_Cptes_PADD!#REF! ->  | I16: =Redd_Cptes_PADD!#REF! ->  | J16: =Redd_Cptes_PADD!#REF! ->  | K16: =Redd_Cptes_PADD!#REF! ->  | L16: =Redd_Cptes_PADD!#REF! ->  | M16: =Redd_Cptes_PADD!#REF! ->  | N16: Extrant | V16: NON
A17: =Table1[CLEF_uni] -> 0 | B17: =Redd_Cptes_PADD!#REF! ->  | C17: =Redd_Cptes_PADD!#REF! ->  | D17: =Redd_Cptes_PADD!#REF! ->  | E17: =Redd_Cptes_PADD!#REF! ->  | F17: =Redd_Cptes_PADD!#REF! ->  | G17: =Redd_Cptes_PADD!#REF! ->  | H17: =Redd_Cptes_PADD!#REF! ->  | I17: =Redd_Cptes_PADD!#REF! ->  | J17: =Redd_Cptes_PADD!#REF! ->  | K17: =Redd_Cptes_PADD!#REF! ->  | L17: =Redd_Cptes_PADD!#REF! ->  | M17: =Redd_Cptes_PADD!#REF! ->  | N17: Extrant | V17: NON
A18: =Table1[CLEF_uni] -> 0 | B18: =Redd_Cptes_PADD!#REF! ->  | C18: =Redd_Cptes_PADD!#REF! ->  | D18: =Redd_Cptes_PADD!#REF! ->  | E18: =Redd_Cptes_PADD!#REF! ->  | F18: =Redd_Cptes_PADD!#REF! ->  | G18: =Redd_Cptes_PADD!#REF! ->  | H18: =Redd_Cptes_PADD!#REF! ->  | I18: =Redd_Cptes_PADD!#REF! ->  | J18: =Redd_Cptes_PADD!#REF! ->  | K18: =Redd_Cptes_PADD!#REF! ->  | L18: =Redd_Cptes_PADD!#REF! ->  | M18: =Redd_Cptes_PADD!#REF! ->  | N18: Extrant | V18: NON
A19: =Table1[CLEF_uni] -> 0 | B19: =Redd_Cptes_PADD!#REF! ->  | C19: =Redd_Cptes_PADD!#REF! ->  | D19: =Redd_Cptes_PADD!#REF! ->  | E19: =Redd_Cptes_PADD!#REF! ->  | F19: =Redd_Cptes_PADD!#REF! ->  | G19: =Redd_Cptes_PADD!#REF! ->  | H19: =Redd_Cptes_PADD!#REF! ->  | I19: =Redd_Cptes_PADD!#REF! ->  | J19: =Redd_Cptes_PADD!#REF! ->  | K19: =Redd_Cptes_PADD!#REF! ->  | L19: =Redd_Cptes_PADD!#REF! ->  | M19: =Redd_Cptes_PADD!#REF! ->  | N19: Extrant | V19: NON
A20: =Table1[CLEF_uni] -> 0 | B20: =Redd_Cptes_PADD!#REF! ->  | C20: =Redd_Cptes_PADD!#REF! ->  | D20: =Redd_Cptes_PADD!#REF! ->  | E20: =Redd_Cptes_PADD!#REF! ->  | F20: =Redd_Cptes_PADD!#REF! ->  | G20: =Redd_Cptes_PADD!#REF! ->  | H20: =Redd_Cptes_PADD!#REF! ->  | I20: =Redd_Cptes_PADD!#REF! ->  | J20: =Redd_Cptes_PADD!#REF! ->  | K20: =Redd_Cptes_PADD!#REF! ->  | L20: =Redd_Cptes_PADD!#REF! ->  | M20: =Redd_Cptes_PADD!#REF! ->  | N20: Extrant | V20: NON
A21: =Table1[CLEF_uni] -> 0 | B21: =Redd_Cptes_PADD!#REF! ->  | C21: =Redd_Cptes_PADD!#REF! ->  | D21: =Redd_Cptes_PADD!#REF! ->  | E21: =Redd_Cptes_PADD!#REF! ->  | F21: =Redd_Cptes_PADD!#REF! ->  | G21: =Redd_Cptes_PADD!#REF! ->  | H21: =Redd_Cptes_PADD!#REF! ->  | I21: =Redd_Cptes_PADD!#REF! ->  | J21: =Redd_Cptes_PADD!#REF! ->  | K21: =Redd_Cptes_PADD!#REF! ->  | L21: =Redd_Cptes_PADD!#REF! ->  | M21: =Redd_Cptes_PADD!#REF! ->  | N21: Intrant | V21: NON
A22: =Table1[CLEF_uni] -> 0 | B22: =Redd_Cptes_PADD!#REF! ->  | C22: =Redd_Cptes_PADD!#REF! ->  | D22: =Redd_Cptes_PADD!#REF! ->  | E22: =Redd_Cptes_PADD!#REF! ->  | F22: =Redd_Cptes_PADD!#REF! ->  | G22: =Redd_Cptes_PADD!#REF! ->  | H22: =Redd_Cptes_PADD!#REF! ->  | I22: =Redd_Cptes_PADD!#REF! ->  | J22: =Redd_Cptes_PADD!#REF! ->  | K22: =Redd_Cptes_PADD!#REF! ->  | L22: =Redd_Cptes_PADD!#REF! ->  | M22: =Redd_Cptes_PADD!#REF! ->  | N22: Intrant | V22: NON
A23: =Table1[CLEF_uni] -> 0 | B23: =Redd_Cptes_PADD!#REF! ->  | C23: =Redd_Cptes_PADD!#REF! ->  | D23: =Redd_Cptes_PADD!#REF! ->  | E23: =Redd_Cptes_PADD!#REF! ->  | F23: =Redd_Cptes_PADD!#REF! ->  | G23: =Redd_Cptes_PADD!#REF! ->  | H23: =Redd_Cptes_PADD!#REF! ->  | I23: =Redd_Cptes_PADD!#REF! ->  | J23: =Redd_Cptes_PADD!#REF! ->  | K23: =Redd_Cptes_PADD!#REF! ->  | L23: =Redd_Cptes_PADD!#REF! ->  | M23: =Redd_Cptes_PADD!#REF! ->  | N23: Effet-impact | V23: NON
A24: =Table1[CLEF_uni] -> 0 | B24: =Redd_Cptes_PADD!#REF! ->  | C24: =Redd_Cptes_PADD!#REF! ->  | D24: =Redd_Cptes_PADD!#REF! ->  | E24: =Redd_Cptes_PADD!#REF! ->  | F24: =Redd_Cptes_PADD!#REF! ->  | G24: =Redd_Cptes_PADD!#REF! ->  | H24: =Redd_Cptes_PADD!#REF! ->  | I24: =Redd_Cptes_PADD!#REF! ->  | J24: =Redd_Cptes_PADD!#REF! ->  | K24: =Redd_Cptes_PADD!#REF! ->  | L24: =Redd_Cptes_PADD!#REF! ->  | M24: =Redd_Cptes_PADD!#REF! ->  | N24: Intrant | V24: NON
A25: =Table1[CLEF_uni] -> 0 | B25: =Redd_Cptes_PADD!#REF! ->  | C25: =Redd_Cptes_PADD!#REF! ->  | D25: =Redd_Cptes_PADD!#REF! ->  | E25: =Redd_Cptes_PADD!#REF! ->  | F25: =Redd_Cptes_PADD!#REF! ->  | G25: =Redd_Cptes_PADD!#REF! ->  | H25: =Redd_Cptes_PADD!#REF! ->  | I25: =Redd_Cptes_PADD!#REF! ->  | J25: =Redd_Cptes_PADD!#REF! ->  | K25: =Redd_Cptes_PADD!#REF! ->  | L25: =Redd_Cptes_PADD!#REF! ->  | M25: =Redd_Cptes_PADD!#REF! ->  | N25: Intrant | V25: NON
A26: =Table1[CLEF_uni] -> 0 | B26: =Redd_Cptes_PADD!#REF! ->  | C26: =Redd_Cptes_PADD!#REF! ->  | D26: =Redd_Cptes_PADD!#REF! ->  | E26: =Redd_Cptes_PADD!#REF! ->  | F26: =Redd_Cptes_PADD!#REF! ->  | G26: =Redd_Cptes_PADD!#REF! ->  | H26: =Redd_Cptes_PADD!#REF! ->  | I26: =Redd_Cptes_PADD!#REF! ->  | J26: =Redd_Cptes_PADD!#REF! ->  | K26: =Redd_Cptes_PADD!#REF! ->  | L26: =Redd_Cptes_PADD!#REF! ->  | M26: =Redd_Cptes_PADD!#REF! ->  | N26: Intrant | V26: NON
A27: =Table1[CLEF_uni] -> 0 | B27: =Redd_Cptes_PADD!#REF! ->  | C27: =Redd_Cptes_PADD!#REF! ->  | D27: =Redd_Cptes_PADD!#REF! ->  | E27: =Redd_Cptes_PADD!#REF! ->  | F27: =Redd_Cptes_PADD!#REF! ->  | G27: =Redd_Cptes_PADD!#REF! ->  | H27: =Redd_Cptes_PADD!#REF! ->  | I27: =Redd_Cptes_PADD!#REF! ->  | J27: =Redd_Cptes_PADD!#REF! ->  | K27: =Redd_Cptes_PADD!#REF! ->  | L27: =Redd_Cptes_PADD!#REF! ->  | M27: =Redd_Cptes_PADD!#REF! ->  | V27: NON
A28: =Table1[CLEF_uni] -> 0 | B28: =Redd_Cptes_PADD!#REF! ->  | C28: =Redd_Cptes_PADD!#REF! ->  | D28: =Redd_Cptes_PADD!#REF! ->  | E28: =Redd_Cptes_PADD!#REF! ->  | F28: =Redd_Cptes_PADD!#REF! ->  | G28: =Redd_Cptes_PADD!#REF! ->  | H28: =Redd_Cptes_PADD!#REF! ->  | I28: =Redd_Cptes_PADD!#REF! ->  | J28: =Redd_Cptes_PADD!#REF! ->  | K28: =Redd_Cptes_PADD!#REF! ->  | L28: =Redd_Cptes_PADD!#REF! ->  | M28: =Redd_Cptes_PADD!#REF! ->  | V28: NON
A29: =Table1[CLEF_uni] -> 0 | B29: =Redd_Cptes_PADD!#REF! ->  | C29: =Redd_Cptes_PADD!#REF! ->  | D29: =Redd_Cptes_PADD!#REF! ->  | E29: =Redd_Cptes_PADD!#REF! ->  | F29: =Redd_Cptes_PADD!#REF! ->  | G29: =Redd_Cptes_PADD!#REF! ->  | H29: =Redd_Cptes_PADD!#REF! ->  | I29: =Redd_Cptes_PADD!#REF! ->  | J29: =Redd_Cptes_PADD!#REF! ->  | K29: =Redd_Cptes_PADD!#REF! ->  | L29: =Redd_Cptes_PADD!#REF! ->  | M29: =Redd_Cptes_PADD!#REF! ->  | V29: NON
C30: =COUNTIF(C5:C29,"<>") -> 25 | F30: =COUNTIF(F5:F29,"<>") -> 25 | H30: <--- Total | M30: Moyenne | N30: =COUNTIF(N5:N29,"Extrant*")+COUNTIF(N5:N29,"Effet-impact*") -> 16 | O30: =COUNTIF(O5:O29,"OUI")/(COUNTIF(O5:O29,"OUI")+COUNTIF(O5:O29,"NON")) -> 1 | P30: 1 | Q30: 1 | R30: 1 | S30: 1 | T30: 1 | U30: 1 | V30: 0.08
M31: Tolérance | N31: 2
D33: Attentes de participation | G33: Pondération des critères d'analyse qualité - PADD
G34: SMART | H34: Indicateurs résultats | I34: Ambition | J34: Cibles annuelles | K34: Sous-total | L34: Attentes | M34: TOTAL
D35: Attentes répondues | G35: 0.25 | H35: 0.3 | I35: 0.25 | J35: 0.2 | K35: 1 | M35: 1
D36: Attentes convenues | G36: SMART | H36: IND_RESUL | I36: AMB | J36: ANN | K36: SOUS_TOT | L36: ATTENTES | M36: TOT
D37: Proportion | E37: =E35/E36 ->  | G37: =G35*V30 -> 0.02 | H37: =(N30/(F30-N31))*H35 -> 0.2086956522 | I37: =I35*P30 -> 0.25 | J37: =J35*O30 -> 0.2 | K37: =Table510[[#This Row],[ANN]]+Table510[[#This Row],[AMB]]+Table510[[#This Row],[IND_RESUL]]+Table510[[#This Row],[SMART]] -> 0.6786956522 | L37: =E37 ->  | M37: =Table510[[#This Row],[ATTENTES]]*Table510[[#This Row],[SOUS_TOT]] -> 

Sheet Analyse_Atteinte (hidden)
A1: ANALYSE DE L'ATTEINTE DU PLAN D'ACTION DE DÉVELOPPEMENT DURABLE
A2: Plan d'action 2023-2028 de l'organisation
A3: Clef unique | B3: № action | C3: Action | D3: Description action | E3: № indicateur | F3: Indicateur | G3: Référence | H3: Cible 2023-2024 | I3: Résultats et synthèse des activités 2023-2024 | J3: Détail des activités réalisées au cours de l'année 2023-2024 | K3: État de l'engagement 2023-2024 | L3: Pourcentage d'atteinte de la cible 2023-2024 | M3: Cible 2024-2025 | N3: Résultats et synthèse des activités 2024-2025 (Max 20 mots/ 125 caractères) | O3: Détail des activités réalisées au cours de l'année 2024-2025 (Max 65 mots/400 caractères) | P3: État de l'engagement 2024-2025 | Q3: Pourcentage d'atteinte de la cible 2024-2025 | R3: Cible 2025-2026 | S3: Résultats et synthèse des activités 2025-2026 (Max 20 mots/ 125 caractères) | T3: Détail des activités réalisées au cours de l'année 2025-2026 (Max 65 mots/400 caractères) | U3: État de l'engagement 2025-2026 | V3: Pourcentage d'atteinte de la cible 2025-2026 | W3: Cible 2026-2027 | X3: Résultats et synthèse des activités 2026-2027 (Max 20 mots/ 125 caractères) | Y3: Détail des activités réalisées au cours de l'année 2026-2027 (Max 65 mots/400 caractères) | Z3: État de l'engagement 2026-2027 | AA3: Pourcentage d'atteinte de la cible 2026-2027 | AB3: Cible 2027-2028 | AC3: Résultats et synthèse des activités 2027-2028 (Max 20 mots/ 125 caractères) | AD3: Détail des activités réalisées au cours de l'année 2027-2028 (Max 65 mots/400 caractères) | AE3: État de l'engagement 2027-2028 | AF3: Pourcentage d'atteinte de la cible 2027-2028 | AG3: Cible 2028-2029 | AH3: Résultats et synthèse des activités 2028-2029 (Max 20 mots/ 125 caractères) | AI3: Détail des activités réalisées au cours de l'année 2028-2029 (Max 65 mots/400 caractères) | AJ3: État de l'engagement 2028-2029 | AK3: Pourcentage d'atteinte de la cible 2028-2029 | AL3: Commentaires
A4: CLEF_uni | B4: No_ACT | C4: LIB_ACT | D4: DES_ACT | E4: No_IND | F4: Lib_IND | G4: Ref | H4: CIB_24 | M4: CIB_25 | R4: CIB_26 | W4: CIB_27 | AB4: CIB_28 | AG4: CIB_29 | AL4: COM
A5: =Table1[CLEF_uni] -> 0 | B5: =Redd_Cptes_PADD!#REF! ->  | C5: =Redd_Cptes_PADD!#REF! ->  | D5: =Redd_Cptes_PADD!#REF! ->  | E5: =Redd_Cptes_PADD!#REF! ->  | F5: =Redd_Cptes_PADD!#REF! ->  | G5: =Redd_Cptes_PADD!#REF! ->  | H5: =Redd_Cptes_PADD!#REF! ->  | I5: =Redd_Cptes_PADD!#REF! ->  | J5: =Redd_Cptes_PADD!#REF! ->  | K5: =Redd_Cptes_PADD!#REF! ->  | L5: =Redd_Cptes_PADD!#REF! ->  | M5: =Redd_Cptes_PADD!#REF! ->  | N5: =Redd_Cptes_PADD!#REF! ->  | O5: =Redd_Cptes_PADD!#REF! ->  | P5: =Redd_Cptes_PADD!#REF! ->  | Q5: =Redd_Cptes_PADD!#REF! ->  | R5: =Redd_Cptes_PADD!#REF! ->  | S5: =Redd_Cptes_PADD!#REF! ->  | T5: =Redd_Cptes_PADD!#REF! ->  | U5: =Redd_Cptes_PADD!#REF! ->  | V5: =Redd_Cptes_PADD!#REF! ->  | W5: =Redd_Cptes_PADD!#REF! ->  | X5: =Redd_Cptes_PADD!#REF! ->  | Y5: =Redd_Cptes_PADD!#REF! ->  | Z5: =Redd_Cptes_PADD!#REF! ->  | AA5: =Redd_Cptes_PADD!#REF! ->  | AB5: =Redd_Cptes_PADD!#REF! ->  | AC5: =Redd_Cptes_PADD!#REF! ->  | AD5: =Redd_Cptes_PADD!#REF! ->  | AE5: =Redd_Cptes_PADD!#REF! ->  | AF5: =Redd_Cptes_PADD!#REF! ->  | AG5: =Redd_Cptes_PADD!#REF! ->  | AH5: =Redd_Cptes_PADD!#REF! ->  | AI5: =Redd_Cptes_PADD!#REF! ->  | AJ5: =Redd_Cptes_PADD!#REF! ->  | AK5: =Redd_Cptes_PADD!#REF! -> 
A6: =Table1[CLEF_uni] -> 0 | B6: =Redd_Cptes_PADD!G3 -> 1 | C6: =Redd_Cptes_PADD!H3 -> Assurer le développement des compétences vertes | D6: =Redd_Cptes_PADD!I3 -> Identifier les impacts de la transition socio-écologique, notamment la transition climatique, sur l’emploi et les compétences des travailleurs de leurs secteurs d’activité, et répondre à cet enjeu par leurs politiques publiques et leurs programmes | E6: =Redd_Cptes_PADD!J3 -> 1.1 | F6: =Redd_Cptes_PADD!K3 -> Nombre d'actions réalisées par LOJIQ autour du développement durable | G6: =Redd_Cptes_PADD!L3 -> N/A | H6: =Redd_Cptes_PADD!M3 -> 10 | I6: =Redd_Cptes_PADD!S3 -> Inscrire le résultat | J6: =Redd_Cptes_PADD!T3 -> Inscrire les détails | K6: =Redd_Cptes_PADD!U3 -> NON ATTEINT- Débuté | L6: =Redd_Cptes_PADD!V3 -> 0 | M6: =Redd_Cptes_PADD!N3 -> 14 | N6: =Redd_Cptes_PADD!X3 -> Inscrire le résultat | O6: =Redd_Cptes_PADD!Y3 -> Inscrire les détails | P6: =Redd_Cptes_PADD!Z3 -> ATTEINT | Q6: =Redd_Cptes_PADD!AA3 -> 0 | R6: =Redd_Cptes_PADD!O3 -> 16 | S6: =Redd_Cptes_PADD!AC3 -> Inscrire le résultat | T6: =Redd_Cptes_PADD!AD3 -> Inscrire les détails | U6: =Redd_Cptes_PADD!AE3 -> ATTEINT | V6: =Redd_Cptes_PADD!AF3 -> 0 | W6: =Redd_Cptes_PADD!P3 -> 18 | X6: =Redd_Cptes_PADD!AH3 -> Inscrire le résultat | Y6: =Redd_Cptes_PADD!AI3 -> Inscrire les détails | Z6: =Redd_Cptes_PADD!AJ3 -> ATTEINT | AA6: =Redd_Cptes_PADD!AK3 -> 0 | AB6: =Redd_Cptes_PADD!Q3 -> 20 | AC6: =Redd_Cptes_PADD!AM3 -> Inscrire le résultat | AD6: =Redd_Cptes_PADD!AN3 -> Inscrire les détails | AE6: =Redd_Cptes_PADD!AO3 -> ATTEINT | AF6: =Redd_Cptes_PADD!AP3 -> 0 | AG6: =Redd_Cptes_PADD!R3 -> 0 | AH6: =Redd_Cptes_PADD!AR3 -> Inscrire le résultat | AI6: =Redd_Cptes_PADD!AS3 -> Inscrire les détails | AJ6: =Redd_Cptes_PADD!AT3 -> ATTEINT | AK6: =Redd_Cptes_PADD!AU3 -> 0
A7: =Table1[CLEF_uni] -> 0 | B7: =Redd_Cptes_PADD!G4 -> 2 | C7: =Redd_Cptes_PADD!H4 -> Soutenir les groupes communautaires et les entreprises en économie sociale | D7: =Redd_Cptes_PADD!I4 -> Établir les retombées de la transition socio-écologique sur leur clientèle et sur les services qui lui sont offerts afin de les adapter. Il est également attendu qu’ils appuient les organismes qui contribuent à l’inclusion sociale et économique, car ceux-ci jouent un rôle essentiel dans cette transition. | E7: =Redd_Cptes_PADD!J4 -> 2.1 | F7: =Redd_Cptes_PADD!K4 -> Nombre d’actions visant à soutenir les entreprises en économie sociale et les groupes communautaires | G7: =Redd_Cptes_PADD!L4 -> N/A | H7: =Redd_Cptes_PADD!M4 -> 6 | I7: =Redd_Cptes_PADD!S4 -> Inscrire le résultat | J7: =Redd_Cptes_PADD!T4 -> Inscrire les détails | K7: =Redd_Cptes_PADD!U4 -> NON ATTEINT- Débuté | L7: =Redd_Cptes_PADD!V4 -> 0 | M7: =Redd_Cptes_PADD!N4 -> 10 | N7: =Redd_Cptes_PADD!X4 -> Inscrire le résultat | O7: =Redd_Cptes_PADD!Y4 -> Inscrire les détails | P7: =Redd_Cptes_PADD!Z4 -> ATTEINT | Q7: =Redd_Cptes_PADD!AA4 -> 0 | R7: =Redd_Cptes_PADD!O4 -> 12 | S7: =Redd_Cptes_PADD!AC4 -> Inscrire le résultat | T7: =Redd_Cptes_PADD!AD4 -> Inscrire les détails | U7: =Redd_Cptes_PADD!AE4 -> NON ATTEINT- Débuté | V7: =Redd_Cptes_PADD!AF4 -> 0.65 | W7: =Redd_Cptes_PADD!P4 -> 15 | X7: =Redd_Cptes_PADD!AH4 -> Inscrire le résultat | Y7: =Redd_Cptes_PADD!AI4 -> Inscrire les détails | Z7: =Redd_Cptes_PADD!AJ4 -> ATTEINT | AA7: =Redd_Cptes_PADD!AK4 -> 0 | AB7: =Redd_Cptes_PADD!Q4 -> 18 | AC7: =Redd_Cptes_PADD!AM4 -> Inscrire le résultat | AD7: =Redd_Cptes_PADD!AN4 -> Inscrire les détails | AE7: =Redd_Cptes_PADD!AO4 -> ATTEINT | AF7: =Redd_Cptes_PADD!AP4 -> 0 | AG7: =Redd_Cptes_PADD!R4 -> 0 | AH7: =Redd_Cptes_PADD!AR4 -> Inscrire le résultat | AI7: =Redd_Cptes_PADD!AS4 -> Inscrire les détails | AJ7: =Redd_Cptes_PADD!AT4 -> NON ATTEINT- Débuté | AK7: =Redd_Cptes_PADD!AU4 -> 0.77
A8: =Table1[CLEF_uni] -> 0 | B8: =Redd_Cptes_PADD!G5 -> 1 | C8: =Redd_Cptes_PADD!H5 -> Favoriser la cohésion sociale par le dialogue culturel | D8: =Redd_Cptes_PADD!I5 -> Inclure les questions relatives à l’égalité entre les sexes, à l’équité et à la diversité dans leurs lois, politiques publiques et programmes et qu’ils mobilisent leurs partenaires privés et publics sur cet enjeu. Il est aussi attendu qu’ils mettent en valeur l’apport socioculturel des jeunes, des femmes, des Autochtones et des personnes issues de la diversité à société québécoise. | E8: =Redd_Cptes_PADD!J5 -> 1.1 | F8: 0 | G8: =Redd_Cptes_PADD!L5 -> 1 | H8: =Redd_Cptes_PADD!M5 -> 1 | I8: =Redd_Cptes_PADD!S5 -> Inscrire le résultat | J8: =Redd_Cptes_PADD!T5 -> Inscrire les détails | K8: =Redd_Cptes_PADD!U5 -> NON ATTEINT- Débuté | L8: =Redd_Cptes_PADD!V5 -> 0 | M8: =Redd_Cptes_PADD!N5 -> 1 | N8: =Redd_Cptes_PADD!X5 -> Inscrire le résultat | O8: =Redd_Cptes_PADD!Y5 -> Inscrire les détails | P8: =Redd_Cptes_PADD!Z5 -> ATTEINT | Q8: =Redd_Cptes_PADD!AA5 -> 0 | R8: =Redd_Cptes_PADD!O5 -> 1 | S8: =Redd_Cptes_PADD!AC5 -> Inscrire le résultat | T8: =Redd_Cptes_PADD!AD5 -> Inscrire les détails | U8: =Redd_Cptes_PADD!AE5 -> NON ATTEINT- Débuté | V8: =Redd_Cptes_PADD!AF5 -> 0.8 | W8: =Redd_Cptes_PADD!P5 -> 1 | X8: =Redd_Cptes_PADD!AH5 -> Inscrire le résultat | Y8: =Redd_Cptes_PADD!AI5 -> Inscrire les détails | Z8: =Redd_Cptes_PADD!AJ5 -> NON ATTEINT- Débuté | AA8: =Redd_Cptes_PADD!AK5 -> 0.98 | AB8: =Redd_Cptes_PADD!Q5 -> 1 | AC8: =Redd_Cptes_PADD!AM5 -> Inscrire le résultat | AD8: =Redd_Cptes_PADD!AN5 -> Inscrire les détails | AE8: =Redd_Cptes_PADD!AO5 -> ATTEINT | AF8: =Redd_Cptes_PADD!AP5 -> 0 | AG8: =Redd_Cptes_PADD!R5 -> 0 | AH8: =Redd_Cptes_PADD!AR5 -> Inscrire le résultat | AI8: =Redd_Cptes_PADD!AS5 -> Inscrire les détails | AJ8: =Redd_Cptes_PADD!AT5 -> NON ATTEINT- Débuté | AK8: =Redd_Cptes_PADD!AU5 -> 0.88
A9: =Table1[CLEF_uni] -> 0 | B9: =Redd_Cptes_PADD!G6 -> 2 | C9: =Redd_Cptes_PADD!H6 -> Appuyer l’entrepreneuriat des femmes, des autochtones et des personnes issues de la diversité | D9: =Redd_Cptes_PADD!I6 -> Encourager l’entrepreneuriat des femmes, des Autochtones et des personnes issues de la diversité en portant une attention particulière aux jeunes. Ils sont aussi appelés à soutenir l’intégration au marché du travail de ces personnes et le développement de milieux de travail sécuritaires et inclusifs pour tous. | E9: =Redd_Cptes_PADD!J6 -> 2.1 | F9: 0 | G9: =Redd_Cptes_PADD!L6 -> N/A | H9: =Redd_Cptes_PADD!M6 -> 2 | I9: =Redd_Cptes_PADD!S6 -> Inscrire le résultat | J9: =Redd_Cptes_PADD!T6 -> Inscrire les détails | K9: =Redd_Cptes_PADD!U6 -> NON ATTEINT- Débuté | L9: =Redd_Cptes_PADD!V6 -> 0 | M9: =Redd_Cptes_PADD!N6 -> 3 | N9: =Redd_Cptes_PADD!X6 -> Inscrire le résultat | O9: =Redd_Cptes_PADD!Y6 -> Inscrire les détails | P9: =Redd_Cptes_PADD!Z6 -> ATTEINT | Q9: =Redd_Cptes_PADD!AA6 -> 0 | R9: =Redd_Cptes_PADD!O6 -> 3 | S9: =Redd_Cptes_PADD!AC6 -> Inscrire le résultat | T9: =Redd_Cptes_PADD!AD6 -> Inscrire les détails | U9: =Redd_Cptes_PADD!AE6 -> NON ATTEINT- Débuté | V9: =Redd_Cptes_PADD!AF6 -> 0.9 | W9: =Redd_Cptes_PADD!P6 -> 4 | X9: =Redd_Cptes_PADD!AH6 -> Inscrire le résultat | Y9: =Redd_Cptes_PADD!AI6 -> Inscrire les détails | Z9: =Redd_Cptes_PADD!AJ6 -> NON ATTEINT- Débuté | AA9: =Redd_Cptes_PADD!AK6 -> 0.77 | AB9: =Redd_Cptes_PADD!Q6 -> 4 | AC9: =Redd_Cptes_PADD!AM6 -> Inscrire le résultat | AD9: =Redd_Cptes_PADD!AN6 -> Inscrire les détails | AE9: =Redd_Cptes_PADD!AO6 -> ATTEINT | AF9: =Redd_Cptes_PADD!AP6 -> 0 | AG9: =Redd_Cptes_PADD!R6 -> 0 | AH9: =Redd_Cptes_PADD!AR6 -> Inscrire le résultat | AI9: =Redd_Cptes_PADD!AS6 -> Inscrire les détails | AJ9: =Redd_Cptes_PADD!AT6 -> NON ATTEINT- Débuté | AK9: =Redd_Cptes_PADD!AU6 -> 0.99
A10: =Table1[CLEF_uni] -> 0 | B10: =Redd_Cptes_PADD!#REF! ->  | C10: =Redd_Cptes_PADD!#REF! ->  | D10: =Redd_Cptes_PADD!#REF! ->  | E10: =Redd_Cptes_PADD!#REF! ->  | F10: 0 | G10: =Redd_Cptes_PADD!#REF! ->  | H10: =Redd_Cptes_PADD!#REF! ->  | I10: =Redd_Cptes_PADD!#REF! ->  | J10: =Redd_Cptes_PADD!#REF! ->  | K10: =Redd_Cptes_PADD!#REF! ->  | L10: =Redd_Cptes_PADD!#REF! ->  | M10: =Redd_Cptes_PADD!#REF! ->  | N10: =Redd_Cptes_PADD!#REF! ->  | O10: =Redd_Cptes_PADD!#REF! ->  | P10: =Redd_Cptes_PADD!#REF! ->  | Q10: =Redd_Cptes_PADD!#REF! ->  | R10: =Redd_Cptes_PADD!#REF! ->  | S10: =Redd_Cptes_PADD!#REF! ->  | T10: =Redd_Cptes_PADD!#REF! ->  | U10: =Redd_Cptes_PADD!#REF! ->  | V10: =Redd_Cptes_PADD!#REF! ->  | W10: =Redd_Cptes_PADD!#REF! ->  | X10: =Redd_Cptes_PADD!#REF! ->  | Y10: =Redd_Cptes_PADD!#REF! ->  | Z10: =Redd_Cptes_PADD!#REF! ->  | AA10: =Redd_Cptes_PADD!#REF! ->  | AB10: =Redd_Cptes_PADD!#REF! ->  | AC10: =Redd_Cptes_PADD!#REF! ->  | AD10: =Redd_Cptes_PADD!#REF! ->  | AE10: =Redd_Cptes_PADD!#REF! ->  | AF10: =Redd_Cptes_PADD!#REF! ->  | AG10: =Redd_Cptes_PADD!#REF! ->  | AH10: =Redd_Cptes_PADD!#REF! ->  | AI10: =Redd_Cptes_PADD!#REF! ->  | AJ10: =Redd_Cptes_PADD!#REF! ->  | AK10: =Redd_Cptes_PADD!#REF! -> 
A11: =Table1[CLEF_uni] -> 0 | B11: =Redd_Cptes_PADD!#REF! ->  | C11: =Redd_Cptes_PADD!#REF! ->  | D11: =Redd_Cptes_PADD!#REF! ->  | E11: =Redd_Cptes_PADD!#REF! ->  | F11: 0 | G11: =Redd_Cptes_PADD!#REF! ->  | H11: =Redd_Cptes_PADD!#REF! ->  | I11: =Redd_Cptes_PADD!#REF! ->  | J11: =Redd_Cptes_PADD!#REF! ->  | K11: =Redd_Cptes_PADD!#REF! ->  | L11: =Redd_Cptes_PADD!#REF! ->  | M11: =Redd_Cptes_PADD!#REF! ->  | N11: =Redd_Cptes_PADD!#REF! ->  | O11: =Redd_Cptes_PADD!#REF! ->  | P11: =Redd_Cptes_PADD!#REF! ->  | Q11: =Redd_Cptes_PADD!#REF! ->  | R11: =Redd_Cptes_PADD!#REF! ->  | S11: =Redd_Cptes_PADD!#REF! ->  | T11: =Redd_Cptes_PADD!#REF! ->  | U11: =Redd_Cptes_PADD!#REF! ->  | V11: =Redd_Cptes_PADD!#REF! ->  | W11: =Redd_Cptes_PADD!#REF! ->  | X11: =Redd_Cptes_PADD!#REF! ->  | Y11: =Redd_Cptes_PADD!#REF! ->  | Z11: =Redd_Cptes_PADD!#REF! ->  | AA11: =Redd_Cptes_PADD!#REF! ->  | AB11: =Redd_Cptes_PADD!#REF! ->  | AC11: =Redd_Cptes_PADD!#REF! ->  | AD11: =Redd_Cptes_PADD!#REF! ->  | AE11: =Redd_Cptes_PADD!#REF! ->  | AF11: =Redd_Cptes_PADD!#REF! ->  | AG11: =Redd_Cptes_PADD!#REF! ->  | AH11: =Redd_Cptes_PADD!#REF! ->  | AI11: =Redd_Cptes_PADD!#REF! ->  | AJ11: =Redd_Cptes_PADD!#REF! ->  | AK11: =Redd_Cptes_PADD!#REF! -> 
A12: =Table1[CLEF_uni] -> 0 | B12: =Redd_Cptes_PADD!G7 -> 1 | C12: =Redd_Cptes_PADD!H7 -> Évaluer la durabilité des interventions gouvernementales | D12: =Redd_Cptes_PADD!I7 -> Accroissent le taux de leurs interventions structurantes ayant fait l’objet d’une évaluation de la durabilité et comprenant la lutte contre les changements climatiques. | E12: =Redd_Cptes_PADD!J7 -> 1.1 | F12: 0 | G12: =Redd_Cptes_PADD!L7 -> N/A | H12: =Redd_Cptes_PADD!M7 -> 0.75 | I12: =Redd_Cptes_PADD!S7 -> Inscrire le résultat | J12: =Redd_Cptes_PADD!T7 -> Inscrire les détails | K12: =Redd_Cptes_PADD!U7 -> NON ATTEINT- Débuté | L12: =Redd_Cptes_PADD!V7 -> 0 | M12: =Redd_Cptes_PADD!N7 -> 0.85 | N12: =Redd_Cptes_PADD!X7 -> Inscrire le résultat | O12: =Redd_Cptes_PADD!Y7 -> Inscrire les détails | P12: =Redd_Cptes_PADD!Z7 -> ATTEINT | Q12: =Redd_Cptes_PADD!AA7 -> 0 | R12: =Redd_Cptes_PADD!O7 -> 0.9 | S12: =Redd_Cptes_PADD!AC7 -> Inscrire le résultat | T12: =Redd_Cptes_PADD!AD7 -> Inscrire les détails | U12: =Redd_Cptes_PADD!AE7 -> 0 | V12: =Redd_Cptes_PADD!AF7 -> 0 | W12: =Redd_Cptes_PADD!P7 -> 0.95 | X12: =Redd_Cptes_PADD!AH7 -> Inscrire le résultat | Y12: =Redd_Cptes_PADD!AI7 -> Inscrire les détails | Z12: =Redd_Cptes_PADD!AJ7 -> 0 | AA12: =Redd_Cptes_PADD!AK7 -> 0 | AB12: =Redd_Cptes_PADD!Q7 -> 1 | AC12: =Redd_Cptes_PADD!AM7 -> Inscrire le résultat | AD12: =Redd_Cptes_PADD!AN7 -> Inscrire les détails | AE12: =Redd_Cptes_PADD!AO7 -> NON ATTEINT- Débuté | AF12: =Redd_Cptes_PADD!AP7 -> 0.98 | AG12: =Redd_Cptes_PADD!R7 -> 0 | AH12: =Redd_Cptes_PADD!AR7 -> Inscrire le résultat | AI12: =Redd_Cptes_PADD!AS7 -> Inscrire les détails | AJ12: =Redd_Cptes_PADD!AT7 -> 0 | AK12: =Redd_Cptes_PADD!AU7 -> 0
A13: =Table1[CLEF_uni] -> 0 | B13: =Redd_Cptes_PADD!#REF! ->  | C13: =Redd_Cptes_PADD!#REF! ->  | D13: =Redd_Cptes_PADD!#REF! ->  | E13: =Redd_Cptes_PADD!#REF! ->  | F13: 0 | G13: =Redd_Cptes_PADD!#REF! ->  | H13: =Redd_Cptes_PADD!#REF! ->  | I13: =Redd_Cptes_PADD!#REF! ->  | J13: =Redd_Cptes_PADD!#REF! ->  | K13: =Redd_Cptes_PADD!#REF! ->  | L13: =Redd_Cptes_PADD!#REF! ->  | M13: =Redd_Cptes_PADD!#REF! ->  | N13: =Redd_Cptes_PADD!#REF! ->  | O13: =Redd_Cptes_PADD!#REF! ->  | P13: =Redd_Cptes_PADD!#REF! ->  | Q13: =Redd_Cptes_PADD!#REF! ->  | R13: =Redd_Cptes_PADD!#REF! ->  | S13: =Redd_Cptes_PADD!#REF! ->  | T13: =Redd_Cptes_PADD!#REF! ->  | U13: =Redd_Cptes_PADD!#REF! ->  | V13: =Redd_Cptes_PADD!#REF! ->  | W13: =Redd_Cptes_PADD!#REF! ->  | X13: =Redd_Cptes_PADD!#REF! ->  | Y13: =Redd_Cptes_PADD!#REF! ->  | Z13: =Redd_Cptes_PADD!#REF! ->  | AA13: =Redd_Cptes_PADD!#REF! ->  | AB13: =Redd_Cptes_PADD!#REF! ->  | AC13: =Redd_Cptes_PADD!#REF! ->  | AD13: =Redd_Cptes_PADD!#REF! ->  | AE13: =Redd_Cptes_PADD!#REF! ->  | AF13: =Redd_Cptes_PADD!#REF! ->  | AG13: =Redd_Cptes_PADD!#REF! ->  | AH13: =Redd_Cptes_PADD!#REF! ->  | AI13: =Redd_Cptes_PADD!#REF! ->  | AJ13: =Redd_Cptes_PADD!#REF! ->  | AK13: =Redd_Cptes_PADD!#REF! -> 
A14: =Table1[CLEF_uni] -> 0 | B14: =Redd_Cptes_PADD!#REF! ->  | C14: =Redd_Cptes_PADD!#REF! ->  | D14: =Redd_Cptes_PADD!#REF! ->  | E14: =Redd_Cptes_PADD!#REF! ->  | F14: 0 | G14: =Redd_Cptes_PADD!#REF! ->  | H14: =Redd_Cptes_PADD!#REF! ->  | I14: =Redd_Cptes_PADD!#REF! ->  | J14: =Redd_Cptes_PADD!#REF! ->  | K14: =Redd_Cptes_PADD!#REF! ->  | L14: =Redd_Cptes_PADD!#REF! ->  | M14: =Redd_Cptes_PADD!#REF! ->  | N14: =Redd_Cptes_PADD!#REF! ->  | O14: =Redd_Cptes_PADD!#REF! ->  | P14: =Redd_Cptes_PADD!#REF! ->  | Q14: =Redd_Cptes_PADD!#REF! ->  | R14: =Redd_Cptes_PADD!#REF! ->  | S14: =Redd_Cptes_PADD!#REF! ->  | T14: =Redd_Cptes_PADD!#REF! ->  | U14: =Redd_Cptes_PADD!#REF! ->  | V14: =Redd_Cptes_PADD!#REF! ->  | W14: =Redd_Cptes_PADD!#REF! ->  | X14: =Redd_Cptes_PADD!#REF! ->  | Y14: =Redd_Cptes_PADD!#REF! ->  | Z14: =Redd_Cptes_PADD!#REF! ->  | AA14: =Redd_Cptes_PADD!#REF! ->  | AB14: =Redd_Cptes_PADD!#REF! ->  | AC14: =Redd_Cptes_PADD!#REF! ->  | AD14: =Redd_Cptes_PADD!#REF! ->  | AE14: =Redd_Cptes_PADD!#REF! ->  | AF14: =Redd_Cptes_PADD!#REF! ->  | AG14: =Redd_Cptes_PADD!#REF! ->  | AH14: =Redd_Cptes_PADD!#REF! ->  | AI14: =Redd_Cptes_PADD!#REF! ->  | AJ14: =Redd_Cptes_PADD!#REF! ->  | AK14: =Redd_Cptes_PADD!#REF! -> 
A15: =Table1[CLEF_uni] -> 0 | B15: =Redd_Cptes_PADD!#REF! ->  | C15: =Redd_Cptes_PADD!#REF! ->  | D15: =Redd_Cptes_PADD!#REF! ->  | E15: =Redd_Cptes_PADD!#REF! ->  | F15: 0 | G15: =Redd_Cptes_PADD!#REF! ->  | H15: =Redd_Cptes_PADD!#REF! ->  | I15: =Redd_Cptes_PADD!#REF! ->  | J15: =Redd_Cptes_PADD!#REF! ->  | K15: =Redd_Cptes_PADD!#REF! ->  | L15: =Redd_Cptes_PADD!#REF! ->  | M15: =Redd_Cptes_PADD!#REF! ->  | N15: =Redd_Cptes_PADD!#REF! ->  | O15: =Redd_Cptes_PADD!#REF! ->  | P15: =Redd_Cptes_PADD!#REF! ->  | Q15: =Redd_Cptes_PADD!#REF! ->  | R15: =Redd_Cptes_PADD!#REF! ->  | S15: =Redd_Cptes_PADD!#REF! ->  | T15: =Redd_Cptes_PADD!#REF! ->  | U15: =Redd_Cptes_PADD!#REF! ->  | V15: =Redd_Cptes_PADD!#REF! ->  | W15: =Redd_Cptes_PADD!#REF! ->  | X15: =Redd_Cptes_PADD!#REF! ->  | Y15: =Redd_Cptes_PADD!#REF! ->  | Z15: =Redd_Cptes_PADD!#REF! ->  | AA15: =Redd_Cptes_PADD!#REF! ->  | AB15: =Redd_Cptes_PADD!#REF! ->  | AC15: =Redd_Cptes_PADD!#REF! ->  | AD15: =Redd_Cptes_PADD!#REF! ->  | AE15: =Redd_Cptes_PADD!#REF! ->  | AF15: =Redd_Cptes_PADD!#REF! ->  | AG15: =Redd_Cptes_PADD!#REF! ->  | AH15: =Redd_Cptes_PADD!#REF! ->  | AI15: =Redd_Cptes_PADD!#REF! ->  | AJ15: =Redd_Cptes_PADD!#REF! ->  | AK15: =Redd_Cptes_PADD!#REF! -> 
A16: =Table1[CLEF_uni] -> 0 | B16: =Redd_Cptes_PADD!#REF! ->  | C16: =Redd_Cptes_PADD!#REF! ->  | D16: =Redd_Cptes_PADD!#REF! ->  | E16: =Redd_Cptes_PADD!#REF! ->  | F16: 0 | G16: =Redd_Cptes_PADD!#REF! ->  | H16: =Redd_Cptes_PADD!#REF! ->  | I16: =Redd_Cptes_PADD!#REF! ->  | J16: =Redd_Cptes_PADD!#REF! ->  | K16: =Redd_Cptes_PADD!#REF! ->  | L16: =Redd_Cptes_PADD!#REF! ->  | M16: =Redd_Cptes_PADD!#REF! ->  | N16: =Redd_Cptes_PADD!#REF! ->  | O16: =Redd_Cptes_PADD!#REF! ->  | P16: =Redd_Cptes_PADD!#REF! ->  | Q16: =Redd_Cptes_PADD!#REF! ->  | R16: =Redd_Cptes_PADD!#REF! ->  | S16: =Redd_Cptes_PADD!#REF! ->  | T16: =Redd_Cptes_PADD!#REF! ->  | U16: =Redd_Cptes_PADD!#REF! ->  | V16: =Redd_Cptes_PADD!#REF! ->  | W16: =Redd_Cptes_PADD!#REF! ->  | X16: =Redd_Cptes_PADD!#REF! ->  | Y16: =Redd_Cptes_PADD!#REF! ->  | Z16: =Redd_Cptes_PADD!#REF! ->  | AA16: =Redd_Cptes_PADD!#REF! ->  | AB16: =Redd_Cptes_PADD!#REF! ->  | AC16: =Redd_Cptes_PADD!#REF! ->  | AD16: =Redd_Cptes_PADD!#REF! ->  | AE16: =Redd_Cptes_PADD!#REF! ->  | AF16: =Redd_Cptes_PADD!#REF! ->  | AG16: =Redd_Cptes_PADD!#REF! ->  | AH16: =Redd_Cptes_PADD!#REF! ->  | AI16: =Redd_Cptes_PADD!#REF! ->  | AJ16: =Redd_Cptes_PADD!#REF! ->  | AK16: =Redd_Cptes_PADD!#REF! -> 
A17: =Table1[CLEF_uni] -> 0 | B17: =Redd_Cptes_PADD!#REF! ->  | C17: =Redd_Cptes_PADD!#REF! ->  | D17: =Redd_Cptes_PADD!#REF! ->  | E17: =Redd_Cptes_PADD!#REF! ->  | F17: 0 | G17: =Redd_Cptes_PADD!#REF! ->  | H17: =Redd_Cptes_PADD!#REF! ->  | I17: =Redd_Cptes_PADD!#REF! ->  | J17: =Redd_Cptes_PADD!#REF! ->  | K17: =Redd_Cptes_PADD!#REF! ->  | L17: =Redd_Cptes_PADD!#REF! ->  | M17: =Redd_Cptes_PADD!#REF! ->  | N17: =Redd_Cptes_PADD!#REF! ->  | O17: =Redd_Cptes_PADD!#REF! ->  | P17: =Redd_Cptes_PADD!#REF! ->  | Q17: =Redd_Cptes_PADD!#REF! ->  | R17: =Redd_Cptes_PADD!#REF! ->  | S17: =Redd_Cptes_PADD!#REF! ->  | T17: =Redd_Cptes_PADD!#REF! ->  | U17: =Redd_Cptes_PADD!#REF! ->  | V17: =Redd_Cptes_PADD!#REF! ->  | W17: =Redd_Cptes_PADD!#REF! ->  | X17: =Redd_Cptes_PADD!#REF! ->  | Y17: =Redd_Cptes_PADD!#REF! ->  | Z17: =Redd_Cptes_PADD!#REF! ->  | AA17: =Redd_Cptes_PADD!#REF! ->  | AB17: =Redd_Cptes_PADD!#REF! ->  | AC17: =Redd_Cptes_PADD!#REF! ->  | AD17: =Redd_Cptes_PADD!#REF! ->  | AE17: =Redd_Cptes_PADD!#REF! ->  | AF17: =Redd_Cptes_PADD!#REF! ->  | AG17: =Redd_Cptes_PADD!#REF! ->  | AH17: =Redd_Cptes_PADD!#REF! ->  | AI17: =Redd_Cptes_PADD!#REF! ->  | AJ17: =Redd_Cptes_PADD!#REF! ->  | AK17: =Redd_Cptes_PADD!#REF! -> 
A18: =Table1[CLEF_uni] -> 0 | B18: =Redd_Cptes_PADD!#REF! ->  | C18: =Redd_Cptes_PADD!#REF! ->  | D18: =Redd_Cptes_PADD!#REF! ->  | E18: =Redd_Cptes_PADD!#REF! ->  | F18: 0 | G18: =Redd_Cptes_PADD!#REF! ->  | H18: =Redd_Cptes_PADD!#REF! ->  | I18: =Redd_Cptes_PADD!#REF! ->  | J18: =Redd_Cptes_PADD!#REF! ->  | K18: =Redd_Cptes_PADD!#REF! ->  | L18: =Redd_Cptes_PADD!#REF! ->  | M18: =Redd_Cptes_PADD!#REF! ->  | N18: =Redd_Cptes_PADD!#REF! ->  | O18: =Redd_Cptes_PADD!#REF! ->  | P18: =Redd_Cptes_PADD!#REF! ->  | Q18: =Redd_Cptes_PADD!#REF! ->  | R18: =Redd_Cptes_PADD!#REF! ->  | S18: =Redd_Cptes_PADD!#REF! ->  | T18: =Redd_Cptes_PADD!#REF! ->  | U18: =Redd_Cptes_PADD!#REF! ->  | V18: =Redd_Cptes_PADD!#REF! ->  | W18: =Redd_Cptes_PADD!#REF! ->  | X18: =Redd_Cptes_PADD!#REF! ->  | Y18: =Redd_Cptes_PADD!#REF! ->  | Z18: =Redd_Cptes_PADD!#REF! ->  | AA18: =Redd_Cptes_PADD!#REF! ->  | AB18: =Redd_Cptes_PADD!#REF! ->  | AC18: =Redd_Cptes_PADD!#REF! ->  | AD18: =Redd_Cptes_PADD!#REF! ->  | AE18: =Redd_Cptes_PADD!#REF! ->  | AF18: =Redd_Cptes_PADD!#REF! ->  | AG18: =Redd_Cptes_PADD!#REF! ->  | AH18: =Redd_Cptes_PADD!#REF! ->  | AI18: =Redd_Cptes_PADD!#REF! ->  | AJ18: =Redd_Cptes_PADD!#REF! ->  | AK18: =Redd_Cptes_PADD!#REF! -> 
A19: =Table1[CLEF_uni] -> 0 | B19: =Redd_Cptes_PADD!#REF! ->  | C19: =Redd_Cptes_PADD!#REF! ->  | D19: =Redd_Cptes_PADD!#REF! ->  | E19: =Redd_Cptes_PADD!#REF! ->  | F19: 0 | G19: =Redd_Cptes_PADD!#REF! ->  | H19: =Redd_Cptes_PADD!#REF! ->  | I19: =Redd_Cptes_PADD!#REF! ->  | J19: =Redd_Cptes_PADD!#REF! ->  | K19: =Redd_Cptes_PADD!#REF! ->  | L19: =Redd_Cptes_PADD!#REF! ->  | M19: =Redd_Cptes_PADD!#REF! ->  | N19: =Redd_Cptes_PADD!#REF! ->  | O19: =Redd_Cptes_PADD!#REF! ->  | P19: =Redd_Cptes_PADD!#REF! ->  | Q19: =Redd_Cptes_PADD!#REF! ->  | R19: =Redd_Cptes_PADD!#REF! ->  | S19: =Redd_Cptes_PADD!#REF! ->  | T19: =Redd_Cptes_PADD!#REF! ->  | U19: =Redd_Cptes_PADD!#REF! ->  | V19: =Redd_Cptes_PADD!#REF! ->  | W19: =Redd_Cptes_PADD!#REF! ->  | X19: =Redd_Cptes_PADD!#REF! ->  | Y19: =Redd_Cptes_PADD!#REF! ->  | Z19: =Redd_Cptes_PADD!#REF! ->  | AA19: =Redd_Cptes_PADD!#REF! ->  | AB19: =Redd_Cptes_PADD!#REF! ->  | AC19: =Redd_Cptes_PADD!#REF! ->  | AD19: =Redd_Cptes_PADD!#REF! ->  | AE19: =Redd_Cptes_PADD!#REF! ->  | AF19: =Redd_Cptes_PADD!#REF! ->  | AG19: =Redd_Cptes_PADD!#REF! ->  | AH19: =Redd_Cptes_PADD!#REF! ->  | AI19: =Redd_Cptes_PADD!#REF! ->  | AJ19: =Redd_Cptes_PADD!#REF! ->  | AK19: =Redd_Cptes_PADD!#REF! -> 
A20: =Table1[CLEF_uni] -> 0 | B20: =Redd_Cptes_PADD!#REF! ->  | C20: =Redd_Cptes_PADD!#REF! ->  | D20: =Redd_Cptes_PADD!#REF! ->  | E20: =Redd_Cptes_PADD!#REF! ->  | F20: 0 | G20: =Redd_Cptes_PADD!#REF! ->  | H20: =Redd_Cptes_PADD!#REF! ->  | I20: =Redd_Cptes_PADD!#REF! ->  | J20: =Redd_Cptes_PADD!#REF! ->  | K20: =Redd_Cptes_PADD!#REF! ->  | L20: =Redd_Cptes_PADD!#REF! ->  | M20: =Redd_Cptes_PADD!#REF! ->  | N20: =Redd_Cptes_PADD!#REF! ->  | O20: =Redd_Cptes_PADD!#REF! ->  | P20: =Redd_Cptes_PADD!#REF! ->  | Q20: =Redd_Cptes_PADD!#REF! ->  | R20: =Redd_Cptes_PADD!#REF! ->  | S20: =Redd_Cptes_PADD!#REF! ->  | T20: =Redd_Cptes_PADD!#REF! ->  | U20: =Redd_Cptes_PADD!#REF! ->  | V20: =Redd_Cptes_PADD!#REF! ->  | W20: =Redd_Cptes_PADD!#REF! ->  | X20: =Redd_Cptes_PADD!#REF! ->  | Y20: =Redd_Cptes_PADD!#REF! ->  | Z20: =Redd_Cptes_PADD!#REF! ->  | AA20: =Redd_Cptes_PADD!#REF! ->  | AB20: =Redd_Cptes_PADD!#REF! ->  | AC20: =Redd_Cptes_PADD!#REF! ->  | AD20: =Redd_Cptes_PADD!#REF! ->  | AE20: =Redd_Cptes_PADD!#REF! ->  | AF20: =Redd_Cptes_PADD!#REF! ->  | AG20: =Redd_Cptes_PADD!#REF! ->  | AH20: =Redd_Cptes_PADD!#REF! ->  | AI20: =Redd_Cptes_PADD!#REF! ->  | AJ20: =Redd_Cptes_PADD!#REF! ->  | AK20: =Redd_Cptes_PADD!#REF! -> 
A21: =Table1[CLEF_uni] -> 0 | B21: =Redd_Cptes_PADD!#REF! ->  | C21: =Redd_Cptes_PADD!#REF! ->  | D21: =Redd_Cptes_PADD!#REF! ->  | E21: =Redd_Cptes_PADD!#REF! ->  | F21: 0 | G21: =Redd_Cptes_PADD!#REF! ->  | H21: =Redd_Cptes_PADD!#REF! ->  | I21: =Redd_Cptes_PADD!#REF! ->  | J21: =Redd_Cptes_PADD!#REF! ->  | K21: =Redd_Cptes_PADD!#REF! ->  | L21: =Redd_Cptes_PADD!#REF! ->  | M21: =Redd_Cptes_PADD!#REF! ->  | N21: =Redd_Cptes_PADD!#REF! ->  | O21: =Redd_Cptes_PADD!#REF! ->  | P21: =Redd_Cptes_PADD!#REF! ->  | Q21: =Redd_Cptes_PADD!#REF! ->  | R21: =Redd_Cptes_PADD!#REF! ->  | S21: =Redd_Cptes_PADD!#REF! ->  | T21: =Redd_Cptes_PADD!#REF! ->  | U21: =Redd_Cptes_PADD!#REF! ->  | V21: =Redd_Cptes_PADD!#REF! ->  | W21: =Redd_Cptes_PADD!#REF! ->  | X21: =Redd_Cptes_PADD!#REF! ->  | Y21: =Redd_Cptes_PADD!#REF! ->  | Z21: =Redd_Cptes_PADD!#REF! ->  | AA21: =Redd_Cptes_PADD!#REF! ->  | AB21: =Redd_Cptes_PADD!#REF! ->  | AC21: =Redd_Cptes_PADD!#REF! ->  | AD21: =Redd_Cptes_PADD!#REF! ->  | AE21: =Redd_Cptes_PADD!#REF! ->  | AF21: =Redd_Cptes_PADD!#REF! ->  | AG21: =Redd_Cptes_PADD!#REF! ->  | AH21: =Redd_Cptes_PADD!#REF! ->  | AI21: =Redd_Cptes_PADD!#REF! ->  | AJ21: =Redd_Cptes_PADD!#REF! ->  | AK21: =Redd_Cptes_PADD!#REF! -> 
A22: =Table1[CLEF_uni] -> 0 | B22: =Redd_Cptes_PADD!#REF! ->  | C22: =Redd_Cptes_PADD!#REF! ->  | D22: =Redd_Cptes_PADD!#REF! ->  | E22: =Redd_Cptes_PADD!#REF! ->  | F22: 0 | G22: =Redd_Cptes_PADD!#REF! ->  | H22: =Redd_Cptes_PADD!#REF! ->  | I22: =Redd_Cptes_PADD!#REF! ->  | J22: =Redd_Cptes_PADD!#REF! ->  | K22: =Redd_Cptes_PADD!#REF! ->  | L22: =Redd_Cptes_PADD!#REF! ->  | M22: =Redd_Cptes_PADD!#REF! ->  | N22: =Redd_Cptes_PADD!#REF! ->  | O22: =Redd_Cptes_PADD!#REF! ->  | P22: =Redd_Cptes_PADD!#REF! ->  | Q22: =Redd_Cptes_PADD!#REF! ->  | R22: =Redd_Cptes_PADD!#REF! ->  | S22: =Redd_Cptes_PADD!#REF! ->  | T22: =Redd_Cptes_PADD!#REF! ->  | U22: =Redd_Cptes_PADD!#REF! ->  | V22: =Redd_Cptes_PADD!#REF! ->  | W22: =Redd_Cptes_PADD!#REF! ->  | X22: =Redd_Cptes_PADD!#REF! ->  | Y22: =Redd_Cptes_PADD!#REF! ->  | Z22: =Redd_Cptes_PADD!#REF! ->  | AA22: =Redd_Cptes_PADD!#REF! ->  | AB22: =Redd_Cptes_PADD!#REF! ->  | AC22: =Redd_Cptes_PADD!#REF! ->  | AD22: =Redd_Cptes_PADD!#REF! ->  | AE22: =Redd_Cptes_PADD!#REF! ->  | AF22: =Redd_Cptes_PADD!#REF! ->  | AG22: =Redd_Cptes_PADD!#REF! ->  | AH22: =Redd_Cptes_PADD!#REF! ->  | AI22: =Redd_Cptes_PADD!#REF! ->  | AJ22: =Redd_Cptes_PADD!#REF! ->  | AK22: =Redd_Cptes_PADD!#REF! -> 
A23: =Table1[CLEF_uni] -> 0 | B23: =Redd_Cptes_PADD!#REF! ->  | C23: =Redd_Cptes_PADD!#REF! ->  | D23: =Redd_Cptes_PADD!#REF! ->  | E23: =Redd_Cptes_PADD!#REF! ->  | F23: 0 | G23: =Redd_Cptes_PADD!#REF! ->  | H23: =Redd_Cptes_PADD!#REF! ->  | I23: =Redd_Cptes_PADD!#REF! ->  | J23: =Redd_Cptes_PADD!#REF! ->  | K23: =Redd_Cptes_PADD!#REF! ->  | L23: =Redd_Cptes_PADD!#REF! ->  | M23: =Redd_Cptes_PADD!#REF! ->  | N23: =Redd_Cptes_PADD!#REF! ->  | O23: =Redd_Cptes_PADD!#REF! ->  | P23: =Redd_Cptes_PADD!#REF! ->  | Q23: =Redd_Cptes_PADD!#REF! ->  | R23: =Redd_Cptes_PADD!#REF! ->  | S23: =Redd_Cptes_PADD!#REF! ->  | T23: =Redd_Cptes_PADD!#REF! ->  | U23: =Redd_Cptes_PADD!#REF! ->  | V23: =Redd_Cptes_PADD!#REF! ->  | W23: =Redd_Cptes_PADD!#REF! ->  | X23: =Redd_Cptes_PADD!#REF! ->  | Y23: =Redd_Cptes_PADD!#REF! ->  | Z23: =Redd_Cptes_PADD!#REF! ->  | AA23: =Redd_Cptes_PADD!#REF! ->  | AB23: =Redd_Cptes_PADD!#REF! ->  | AC23: =Redd_Cptes_PADD!#REF! ->  | AD23: =Redd_Cptes_PADD!#REF! ->  | AE23: =Redd_Cptes_PADD!#REF! ->  | AF23: =Redd_Cptes_PADD!#REF! ->  | AG23: =Redd_Cptes_PADD!#REF! ->  | AH23: =Redd_Cptes_PADD!#REF! ->  | AI23: =Redd_Cptes_PADD!#REF! ->  | AJ23: =Redd_Cptes_PADD!#REF! ->  | AK23: =Redd_Cptes_PADD!#REF! -> 
A24: =Table1[CLEF_uni] -> 0 | B24: =Redd_Cptes_PADD!#REF! ->  | C24: =Redd_Cptes_PADD!#REF! ->  | D24: =Redd_Cptes_PADD!#REF! ->  | E24: =Redd_Cptes_PADD!#REF! ->  | F24: 0 | G24: =Redd_Cptes_PADD!#REF! ->  | H24: =Redd_Cptes_PADD!#REF! ->  | I24: =Redd_Cptes_PADD!#REF! ->  | J24: =Redd_Cptes_PADD!#REF! ->  | K24: =Redd_Cptes_PADD!#REF! ->  | L24: =Redd_Cptes_PADD!#REF! ->  | M24: =Redd_Cptes_PADD!#REF! ->  | N24: =Redd_Cptes_PADD!#REF! ->  | O24: =Redd_Cptes_PADD!#REF! ->  | P24: =Redd_Cptes_PADD!#REF! ->  | Q24: =Redd_Cptes_PADD!#REF! ->  | R24: =Redd_Cptes_PADD!#REF! ->  | S24: =Redd_Cptes_PADD!#REF! ->  | T24: =Redd_Cptes_PADD!#REF! ->  | U24: =Redd_Cptes_PADD!#REF! ->  | V24: =Redd_Cptes_PADD!#REF! ->  | W24: =Redd_Cptes_PADD!#REF! ->  | X24: =Redd_Cptes_PADD!#REF! ->  | Y24: =Redd_Cptes_PADD!#REF! ->  | Z24: =Redd_Cptes_PADD!#REF! ->  | AA24: =Redd_Cptes_PADD!#REF! ->  | AB24: =Redd_Cptes_PADD!#REF! ->  | AC24: =Redd_Cptes_PADD!#REF! ->  | AD24: =Redd_Cptes_PADD!#REF! ->  | AE24: =Redd_Cptes_PADD!#REF! ->  | AF24: =Redd_Cptes_PADD!#REF! ->  | AG24: =Redd_Cptes_PADD!#REF! ->  | AH24: =Redd_Cptes_PADD!#REF! ->  | AI24: =Redd_Cptes_PADD!#REF! ->  | AJ24: =Redd_Cptes_PADD!#REF! ->  | AK24: =Redd_Cptes_PADD!#REF! -> 
A25: =Table1[CLEF_uni] -> 0 | B25: =Redd_Cptes_PADD!#REF! ->  | C25: =Redd_Cptes_PADD!#REF! ->  | D25: =Redd_Cptes_PADD!#REF! ->  | E25: =Redd_Cptes_PADD!#REF! ->  | F25: 0 | G25: =Redd_Cptes_PADD!#REF! ->  | H25: =Redd_Cptes_PADD!#REF! ->  | I25: =Redd_Cptes_PADD!#REF! ->  | J25: =Redd_Cptes_PADD!#REF! ->  | K25: =Redd_Cptes_PADD!#REF! ->  | L25: =Redd_Cptes_PADD!#REF! ->  | M25: =Redd_Cptes_PADD!#REF! ->  | N25: =Redd_Cptes_PADD!#REF! ->  | O25: =Redd_Cptes_PADD!#REF! ->  | P25: =Redd_Cptes_PADD!#REF! ->  | Q25: =Redd_Cptes_PADD!#REF! ->  | R25: =Redd_Cptes_PADD!#REF! ->  | S25: =Redd_Cptes_PADD!#REF! ->  | T25: =Redd_Cptes_PADD!#REF! ->  | U25: =Redd_Cptes_PADD!#REF! ->  | V25: =Redd_Cptes_PADD!#REF! ->  | W25: =Redd_Cptes_PADD!#REF! ->  | X25: =Redd_Cptes_PADD!#REF! ->  | Y25: =Redd_Cptes_PADD!#REF! ->  | Z25: =Redd_Cptes_PADD!#REF! ->  | AA25: =Redd_Cptes_PADD!#REF! ->  | AB25: =Redd_Cptes_PADD!#REF! ->  | AC25: =Redd_Cptes_PADD!#REF! ->  | AD25: =Redd_Cptes_PADD!#REF! ->  | AE25: =Redd_Cptes_PADD!#REF! ->  | AF25: =Redd_Cptes_PADD!#REF! ->  | AG25: =Redd_Cptes_PADD!#REF! ->  | AH25: =Redd_Cptes_PADD!#REF! ->  | AI25: =Redd_Cptes_PADD!#REF! ->  | AJ25: =Redd_Cptes_PADD!#REF! ->  | AK25: =Redd_Cptes_PADD!#REF! -> 
A26: =Table1[CLEF_uni] -> 0 | B26: =Redd_Cptes_PADD!#REF! ->  | C26: =Redd_Cptes_PADD!#REF! ->  | D26: =Redd_Cptes_PADD!#REF! ->  | E26: =Redd_Cptes_PADD!#REF! ->  | F26: 0 | G26: =Redd_Cptes_PADD!#REF! ->  | H26: =Redd_Cptes_PADD!#REF! ->  | I26: =Redd_Cptes_PADD!#REF! ->  | J26: =Redd_Cptes_PADD!#REF! ->  | K26: =Redd_Cptes_PADD!#REF! ->  | L26: =Redd_Cptes_PADD!#REF! ->  | M26: =Redd_Cptes_PADD!#REF! ->  | N26: =Redd_Cptes_PADD!#REF! ->  | O26: =Redd_Cptes_PADD!#REF! ->  | P26: =Redd_Cptes_PADD!#REF! ->  | Q26: =Redd_Cptes_PADD!#REF! ->  | R26: =Redd_Cptes_PADD!#REF! ->  | S26: =Redd_Cptes_PADD!#REF! ->  | T26: =Redd_Cptes_PADD!#REF! ->  | U26: =Redd_Cptes_PADD!#REF! ->  | V26: =Redd_Cptes_PADD!#REF! ->  | W26: =Redd_Cptes_PADD!#REF! ->  | X26: =Redd_Cptes_PADD!#REF! ->  | Y26: =Redd_Cptes_PADD!#REF! ->  | Z26: =Redd_Cptes_PADD!#REF! ->  | AA26: =Redd_Cptes_PADD!#REF! ->  | AB26: =Redd_Cptes_PADD!#REF! ->  | AC26: =Redd_Cptes_PADD!#REF! ->  | AD26: =Redd_Cptes_PADD!#REF! ->  | AE26: =Redd_Cptes_PADD!#REF! ->  | AF26: =Redd_Cptes_PADD!#REF! ->  | AG26: =Redd_Cptes_PADD!#REF! ->  | AH26: =Redd_Cptes_PADD!#REF! ->  | AI26: =Redd_Cptes_PADD!#REF! ->  | AJ26: =Redd_Cptes_PADD!#REF! ->  | AK26: =Redd_Cptes_PADD!#REF! -> 
A27: =Table1[CLEF_uni] -> 0 | B27: =Redd_Cptes_PADD!#REF! ->  | C27: =Redd_Cptes_PADD!#REF! ->  | D27: =Redd_Cptes_PADD!#REF! ->  | E27: =Redd_Cptes_PADD!#REF! ->  | F27: 0 | G27: =Redd_Cptes_PADD!#REF! ->  | H27: =Redd_Cptes_PADD!#REF! ->  | I27: =Redd_Cptes_PADD!#REF! ->  | J27: =Redd_Cptes_PADD!#REF! ->  | K27: =Redd_Cptes_PADD!#REF! ->  | L27: =Redd_Cptes_PADD!#REF! ->  | M27: =Redd_Cptes_PADD!#REF! ->  | N27: =Redd_Cptes_PADD!#REF! ->  | O27: =Redd_Cptes_PADD!#REF! ->  | P27: =Redd_Cptes_PADD!#REF! ->  | Q27: =Redd_Cptes_PADD!#REF! ->  | R27: =Redd_Cptes_PADD!#REF! ->  | S27: =Redd_Cptes_PADD!#REF! ->  | T27: =Redd_Cptes_PADD!#REF! ->  | U27: =Redd_Cptes_PADD!#REF! ->  | V27: =Redd_Cptes_PADD!#REF! ->  | W27: =Redd_Cptes_PADD!#REF! ->  | X27: =Redd_Cptes_PADD!#REF! ->  | Y27: =Redd_Cptes_PADD!#REF! ->  | Z27: =Redd_Cptes_PADD!#REF! ->  | AA27: =Redd_Cptes_PADD!#REF! ->  | AB27: =Redd_Cptes_PADD!#REF! ->  | AC27: =Redd_Cptes_PADD!#REF! ->  | AD27: =Redd_Cptes_PADD!#REF! ->  | AE27: =Redd_Cptes_PADD!#REF! ->  | AF27: =Redd_Cptes_PADD!#REF! ->  | AG27: =Redd_Cptes_PADD!#REF! ->  | AH27: =Redd_Cptes_PADD!#REF! ->  | AI27: =Redd_Cptes_PADD!#REF! ->  | AJ27: =Redd_Cptes_PADD!#REF! ->  | AK27: =Redd_Cptes_PADD!#REF! -> 
A28: =Table1[CLEF_uni] -> 0 | B28: =Redd_Cptes_PADD!#REF! ->  | C28: =Redd_Cptes_PADD!#REF! ->  | D28: =Redd_Cptes_PADD!#REF! ->  | E28: =Redd_Cptes_PADD!#REF! ->  | F28: 0 | G28: =Redd_Cptes_PADD!#REF! ->  | H28: =Redd_Cptes_PADD!#REF! ->  | I28: =Redd_Cptes_PADD!#REF! ->  | J28: =Redd_Cptes_PADD!#REF! ->  | K28: =Redd_Cptes_PADD!#REF! ->  | L28: =Redd_Cptes_PADD!#REF! ->  | M28: =Redd_Cptes_PADD!#REF! ->  | N28: =Redd_Cptes_PADD!#REF! ->  | O28: =Redd_Cptes_PADD!#REF! ->  | P28: =Redd_Cptes_PADD!#REF! ->  | Q28: =Redd_Cptes_PADD!#REF! ->  | R28: =Redd_Cptes_PADD!#REF! ->  | S28: =Redd_Cptes_PADD!#REF! ->  | T28: =Redd_Cptes_PADD!#REF! ->  | U28: =Redd_Cptes_PADD!#REF! ->  | V28: =Redd_Cptes_PADD!#REF! ->  | W28: =Redd_Cptes_PADD!#REF! ->  | X28: =Redd_Cptes_PADD!#REF! ->  | Y28: =Redd_Cptes_PADD!#REF! ->  | Z28: =Redd_Cptes_PADD!#REF! ->  | AA28: =Redd_Cptes_PADD!#REF! ->  | AB28: =Redd_Cptes_PADD!#REF! ->  | AC28: =Redd_Cptes_PADD!#REF! ->  | AD28: =Redd_Cptes_PADD!#REF! ->  | AE28: =Redd_Cptes_PADD!#REF! ->  | AF28: =Redd_Cptes_PADD!#REF! ->  | AG28: =Redd_Cptes_PADD!#REF! ->  | AH28: =Redd_Cptes_PADD!#REF! ->  | AI28: =Redd_Cptes_PADD!#REF! ->  | AJ28: =Redd_Cptes_PADD!#REF! ->  | AK28: =Redd_Cptes_PADD!#REF! -> 
A29: =Table1[CLEF_uni] -> 0 | B29: =Redd_Cptes_PADD!#REF! ->  | C29: =Redd_Cptes_PADD!#REF! ->  | D29: =Redd_Cptes_PADD!#REF! ->  | E29: =Redd_Cptes_PADD!#REF! ->  | F29: 0 | G29: =Redd_Cptes_PADD!#REF! ->  | H29: =Redd_Cptes_PADD!#REF! ->  | I29: =Redd_Cptes_PADD!#REF! ->  | J29: =Redd_Cptes_PADD!#REF! ->  | K29: =Redd_Cptes_PADD!#REF! ->  | L29: =Redd_Cptes_PADD!#REF! ->  | M29: =Redd_Cptes_PADD!#REF! ->  | N29: =Redd_Cptes_PADD!#REF! ->  | O29: =Redd_Cptes_PADD!#REF! ->  | P29: =Redd_Cptes_PADD!#REF! ->  | Q29: =Redd_Cptes_PADD!#REF! ->  | R29: =Redd_Cptes_PADD!#REF! ->  | S29: =Redd_Cptes_PADD!#REF! ->  | T29: =Redd_Cptes_PADD!#REF! ->  | U29: =Redd_Cptes_PADD!#REF! ->  | V29: =Redd_Cptes_PADD!#REF! ->  | W29: =Redd_Cptes_PADD!#REF! ->  | X29: =Redd_Cptes_PADD!#REF! ->  | Y29: =Redd_Cptes_PADD!#REF! ->  | Z29: =Redd_Cptes_PADD!#REF! ->  | AA29: =Redd_Cptes_PADD!#REF! ->  | AB29: =Redd_Cptes_PADD!#REF! ->  | AC29: =Redd_Cptes_PADD!#REF! ->  | AD29: =Redd_Cptes_PADD!#REF! ->  | AE29: =Redd_Cptes_PADD!#REF! ->  | AF29: =Redd_Cptes_PADD!#REF! ->  | AG29: =Redd_Cptes_PADD!#REF! ->  | AH29: =Redd_Cptes_PADD!#REF! ->  | AI29: =Redd_Cptes_PADD!#REF! ->  | AJ29: =Redd_Cptes_PADD!#REF! ->  | AK29: =Redd_Cptes_PADD!#REF! -> 
C30: =COUNTIF(C5:C29,"<>") -> 25 | F30: =COUNTIF(F5:F29,"<>") -> 25 | H30: <--- Total | P30: =COUNTIF((P5:P29),"ATTEINT") -> 5 | U30: =COUNTIF((U5:U29),"ATTEINT") -> 1 | Z30: =COUNTIF((Z5:Z29),"ATTEINT") -> 2 | AE30: =COUNTIF((AE5:AE29),"ATTEINT") -> 4 | AJ30: =COUNTIF((AJ5:AJ29),"ATTEINT") -> 1
C32: Analyse Atteinte PADD
C33: Années | E33: 2023-2024 | G33: 2024-2025 | I33: 2025-2026 | K33: 2026-2027 | M33: 2027-2028 | O33: 2028-2029
C34: Atteinte | D34: Pondération | E34: CIB_24 | F34: PTS_24 | G34: CIB_25 | H34: PTS_25 | I34: CIB_26 | J34: PTS_26 | K34: CIB_27 | L34: PTS_27 | M34: CIB_28 | N34: PTS_28 | O34: CIB_29 | P34: PTS_29
C35: ATTEINT | D35: 1 | E35: =COUNTIFS((K5:K29),"ATTEINT",(L5:L29),"<=199%") -> 0 | F35: =E35*$D$35 -> 0 | G35: =COUNTIFS((P5:P29),"ATTEINT",(Q5:Q29),"<=199%") -> 5 | H35: =G35*$D$35 -> 5 | I35: =COUNTIFS((U5:U29),"ATTEINT",(V5:V29),"<=199%") -> 1 | J35: =I35*$D$35 -> 1 | K35: =COUNTIFS((Z5:Z29),"ATTEINT",(AA5:AA29),"<=199%") -> 2 | L35: =K35*$D$35 -> 2 | M35: =COUNTIFS((AE5:AE29),"ATTEINT",(AF5:AF29),"<=199%") -> 4 | N35: =M35*$D$35 -> 4 | O35: =COUNTIFS((AJ5:AJ29),"ATTEINT",(AK5:AK29),"<=199%") -> 1 | P35: =O35*$D$35 -> 1
C36: DÉPASSÉ | D36: 0.8 | E36: =COUNTIFS((K5:K29),"ATTEINT",(L5:L29),">=200%") -> 0 | F36: =E36*$D$36 -> 0 | G36: =COUNTIFS((P5:P29),"ATTEINT",(Q5:Q29),">=200%") -> 0 | H36: =G36*$D$36 -> 0 | I36: =COUNTIFS((U5:U29),"ATTEINT",(V5:V29),">=200%") -> 0 | J36: =I36*$D$36 -> 0 | K36: =COUNTIFS((Z5:Z29),"ATTEINT",(AA5:AA29),">=200%") -> 0 | L36: =K36*$D$36 -> 0 | M36: =COUNTIFS((AE5:AE29),"ATTEINT",(AF5:AF29),">=200%") -> 0 | N36: =M36*$D$36 -> 0 | O36: =COUNTIFS((AJ5:AJ29),"ATTEINT",(AK5:AK29),">=200%") -> 0 | P36: =O36*$D$36 -> 0
C37: NON ATTEINT- 90% | D37: 0.5 | E37: =COUNTIFS((K5:K29),"NON ATTEINT- Débuté",(L5:L29),">=90%") -> 0 | F37: =E37*$D$37 -> 0 | G37: =COUNTIFS((P5:P29),"NON ATTEINT- Débuté",(Q5:Q29),">=90%") -> 0 | H37: =G37*$D$37 -> 0 | I37: =COUNTIFS((U5:U29),"NON ATTEINT- Débuté",(V5:V29),">=90%") -> 1 | J37: =I37*$D$37 -> 0.5 | K37: =COUNTIFS((Z5:Z29),"NON ATTEINT- Débuté",(AA5:AA29),">=90%") -> 1 | L37: =K37*$D$37 -> 0.5 | M37: =COUNTIFS((AE5:AE29),"NON ATTEINT- Débuté",(AF5:AF29),">=90%") -> 1 | N37: =M37*$D$37 -> 0.5 | O37: =COUNTIFS((AJ5:AJ29),"NON ATTEINT- Débuté",(AK5:AK29),">=90%") -> 1 | P37: =O37*$D$37 -> 0.5
C38: NON ATTEINT- 75%-89% | D38: 0.375 | E38: =COUNTIFS((K5:K29),"NON ATTEINT- Débuté",(L5:L29),">=75%",(L5:L29),"<=89%") -> 0 | F38: =E38*$D$38 -> 0 | G38: =COUNTIFS((P5:P29),"NON ATTEINT- Débuté",(Q5:Q29),">=75%",(Q5:Q29),"<=89%") -> 0 | H38: =G38*$D$38 -> 0 | I38: =COUNTIFS((U5:U29),"NON ATTEINT- Débuté",(V5:V29),">=75%",(V5:V29),"<=89%") -> 1 | J38: =I38*$D$38 -> 0.375 | K38: =COUNTIFS((Z5:Z29),"NON ATTEINT- Débuté",(AA5:AA29),">=75%",(AA5:AA29),"<=89%") -> 1 | L38: =K38*$D$38 -> 0.375 | M38: =COUNTIFS((AE5:AE29),"NON ATTEINT- Débuté",(AF5:AF29),">=75%",(AF5:AF29),"<=89%") -> 0 | N38: =M38*$D$38 -> 0 | O38: =COUNTIFS((AJ5:AJ29),"NON ATTEINT- Débuté",(AK5:AK29),">=75%",(AK5:AK29),"<=89%") -> 2 | P38: =O38*$D$38 -> 0.75
C39: NON ATTEINT- 60%-74% | D39: 0.25 | E39: =COUNTIFS((K5:K29),"NON ATTEINT- Débuté",(L5:L29),">=60%",(L5:L29),"<=74%") -> 0 | F39: =E39*$D$39 -> 0 | G39: =COUNTIFS((P5:P29),"NON ATTEINT- Débuté",(Q5:Q29),">=60%",(Q5:Q29),"<=74%") -> 0 | H39: =G39*$D$39 -> 0 | I39: =COUNTIFS((U5:U29),"NON ATTEINT- Débuté",(V5:V29),">=60%",(V5:V29),"<=74%") -> 1 | J39: =I39*$D$39 -> 0.25 | K39: =COUNTIFS((Z5:Z29),"NON ATTEINT- Débuté",(AA5:AA29),">=60%",(AA5:AA29),"<=74%") -> 0 | L39: =K39*$D$39 -> 0 | M39: =COUNTIFS((AE5:AE29),"NON ATTEINT- Débuté",(AF5:AF29),">=60%",(AF5:AF29),"<=74%") -> 0 | N39: =M39*$D$39 -> 0 | O39: =COUNTIFS((AJ5:AJ29),"NON ATTEINT- Débuté",(AK5:AK29),">=60%",(AK5:AK29),"<=74%") -> 0 | P39: =O39*$D$39 -> 0
C40: Abandonné | D40: 0 | E40: =COUNTIF((K5:K29),"Abandonné") -> 0 | F40: =E40*$D$40 -> 0 | G40: =COUNTIF((P5:P29),"Abandonné") -> 0 | H40: =G40*$D$40 -> 0 | I40: =COUNTIF((U5:U29),"Abandonné") -> 0 | J40: =I40*$D$40 -> 0 | K40: =COUNTIF((Z5:Z29),"Abandonné") -> 0 | L40: =K40*$D$40 -> 0 | M40: =COUNTIF((AE5:AE29),"Abandonné") -> 0 | N40: =M40*$D$40 -> 0 | O40: =COUNTIF((AJ5:AJ29),"Abandonné") -> 0 | P40: =O40*$D$40 -> 0
C41: Total point | F41: =SUM(F35:F40) -> 0 | H41: =SUM(H35:H40) -> 5 | J41: =SUM(J35:J40) -> 2.125 | L41: =SUM(L35:L40) -> 2.875 | N41: =SUM(N35:N40) -> 4.5 | P41: =SUM(P35:P40) -> 2.25
C42: Transfert de responsabilité | D42: S.O. | E42: =COUNTIF((K5:K29),"Transfert de responsabilité") -> 0 | F42: =E42 -> 0 | G42: =COUNTIF((P5:P29),"Transfert de responsabilité") -> 0 | H42: =G42 -> 0 | I42: =COUNTIF((U5:U29),"Transfert de responsabilité") -> 0 | J42: =I42 -> 0 | K42: =COUNTIF((Z5:Z29),"Transfert de responsabilité") -> 0 | L42: =K42 -> 0 | M42: =COUNTIF((AE5:AE29),"Transfert de responsabilité") -> 0 | N42: =M42 -> 0 | O42: =COUNTIF((AJ5:AJ29),"Transfert de responsabilité") -> 0 | P42: =O42 -> 0
C43: Total somme engagement | F43: =$F$30 -> 25 | H43: =$F$30 -> 25 | J43: =$F$30 -> 25 | L43: =$F$30 -> 25 | N43: =$F$30 -> 25 | P43: =$F$30 -> 25
C44: Total engagement | F44: =F43-F42 -> 25 | H44: =H43-H42 -> 25 | J44: =J43-J42 -> 25 | L44: =L43-L42 -> 25 | N44: =N43-N42 -> 25 | P44: =P43-P42 -> 25
C45: Total atteinte des cibles | F45: =F41/F44 -> 0 | H45: =H41/H44 -> 0.2 | J45: =J41/J44 -> 0.085 | L45: =L41/L44 -> 0.115 | N45: =N41/N44 -> 0.18 | P45: =P41/P44 -> 0.09
C48: Pointage de l'indice de performance en matière de développement durable
C49: Facteurs | D49: IPDD_24 | E49: IPDD_25 | F49: IPDD_26 | G49: IPDD_27 | H49: IPDD_28 | I49: IPDD_29
C50: Qualité du PADD | D50: =Table510[TOT] ->  | E50: =Table510[TOT] ->  | F50: =Table510[TOT] ->  | G50: =Table510[TOT] ->  | H50: =Table510[TOT] ->  | I50: =Table510[TOT] -> 
C51: Atteinte des cibles du PADD | D51: =F45 -> 0 | E51: =H45 -> 0.2 | F51: =J45 -> 0.085 | G51: =L45 -> 0.115 | H51: =N45 -> 0.18 | I51: =P45 -> 0.09
C52: Total | D52: =ROUND((D50+D51)/2,2) ->  | E52: =ROUND((E50+E51)/2,2) -> 

Sheet Notes
